Workbook

Sheet summary
K1: Operational Dashboard
J3: Date: | K3: =reportDate -> 2019-03-27
L4: 1. Step
L9: 2.Step 2

Sheet dataExtract (hidden)
A1: Day | B1: Visits | E1: Week | F1: Orders (p) | H1: Week | I1: Product | J1: Orders (p) | N1: Day | O1: Visits | P1: Visits Lower Bound | Q1: Visits Expected | R1: Visits Upper Bound | U1: Metrics | V1: Orders (p) | W1: Orders (p) | X1: Orders (p) | Y1: Orders (p) | Z1: Orders (p) | AA1: Orders (p)
A2: 2018-11-01 | B2: 7661 | E2: 2019-01-27 | F2: 2754 | H2: 2019-01-27 | I2: Basic High Waist Jean | J2: 53 | N2: 2018-11-01 | O2: 9823 | P2: 6363 | Q2: 8158 | R2: 9954 | U2: Product Department | V2: Womens | W2: Mens | X2: Beauty & Fragrance | Y2: Jewelry & Accessories | Z2: Children & Toys | AA2: ::unspecified::
A3: 2018-11-02 | B3: 9292 | E3: 2019-02-03 | F3: 2749 | H3: 2019-02-03 | I3: Basic High Waist Jean | J3: 46 | N3: 2018-11-02 | O3: 8513 | P3: 7894 | Q3: 9746 | R3: 11599 | U3: 43551.15139 | V3: 6 | W3: 4 | X3: 0 | Y3: 8 | Z3: 4 | AA3: 0
A4: 2018-11-03 | B4: 6870 | E4: 2019-02-10 | F4: 2735 | H4: 2019-02-10 | I4: Basic High Waist Jean | J4: 41 | N4: 2018-11-03 | O4: 4659 | P4: 3265 | Q4: 5135 | R4: 7005 | U4: 43551.19306 | V4: 14 | W4: 12 | X4: 2 | Y4: 4 | Z4: 0 | AA4: 0
A5: 2018-11-04 | B5: 4532 | E5: 2019-02-17 | F5: 2795 | H5: 2019-02-17 | I5: Basic High Waist Jean | J5: 53 | N5: 2018-11-04 | O5: 5327 | P5: 3044 | Q5: 4895 | R5: 6747 | U5: 43551.23472 | V5: 18 | W5: 8 | X5: 4 | Y5: 4 | Z5: 4 | AA5: 0
A6: 2018-11-05 | B6: 5870 | E6: 2019-02-24 | F6: 2694 | H6: 2019-02-24 | I6: Basic High Waist Jean | J6: 43 | N6: 2018-11-05 | O6: 8926 | P6: 7085 | Q6: 8917 | R6: 10750 | U6: 43551.27639 | V6: 30 | W6: 28 | X6: 6 | Y6: 2 | Z6: 6 | AA6: 0
A7: 2018-11-06 | B7: 8404 | E7: 2019-03-03 | F7: 2702 | H7: 2019-03-03 | I7: Basic High Waist Jean | J7: 52 | N7: 2018-11-06 | O7: 8464 | P7: 7624 | Q7: 9434 | R7: 11243 | U7: 43551.31806 | V7: 28 | W7: 28 | X7: 16 | Y7: 12 | Z7: 14 | AA7: 2
A8: 2018-11-07 | B8: 8201 | E8: 2019-03-10 | F8: 2566 | H8: 2019-03-10 | I8: Basic High Waist Jean | J8: 46 | N8: 2018-11-07 | O8: 8628 | P8: 7037 | Q8: 8849 | R8: 10660 | U8: 43551.35972 | V8: 24 | W8: 16 | X8: 12 | Y8: 6 | Z8: 20 | AA8: 2
A9: 2018-11-08 | B9: 8182 | E9: 2019-03-17 | F9: 2819 | H9: 2019-03-17 | I9: Basic High Waist Jean | J9: 38 | N9: 2018-11-08 | O9: 8958 | P9: 7115 | Q9: 8907 | R9: 10698 | U9: 43551.40139 | V9: 40 | W9: 16 | X9: 20 | Y9: 6 | Z9: 20 | AA9: 0
A10: 2018-11-09 | B10: 8458 | N10: 2018-11-09 | O10: 8411 | P10: 7111 | Q10: 8881 | R10: 10651 | U10: 43551.44306 | V10: 30 | W10: 38 | X10: 18 | Y10: 12 | Z10: 10 | AA10: 0
A11: 2018-11-10 | B11: 6929 | N11: 2018-11-10 | O11: 4785 | P11: 3278 | Q11: 5033 | R11: 6789 | U11: 43551.48472 | V11: 42 | W11: 24 | X11: 20 | Y11: 12 | Z11: 4 | AA11: 0
A12: 2018-11-11 | B12: 4536 | N12: 2018-11-11 | O12: 5019 | P12: 3284 | Q12: 5021 | R12: 6759 | U12: 43551.52639 | V12: 30 | W12: 18 | X12: 20 | Y12: 12 | Z12: 10 | AA12: 0
A13: 2018-11-12 | B13: 5845 | N13: 2018-11-12 | O13: 9107 | P13: 6890 | Q13: 8609 | R13: 10327 | U13: 43551.56806 | V13: 36 | W13: 20 | X13: 24 | Y13: 24 | Z13: 18 | AA13: 0
A14: 2018-11-13 | B14: 8698 | N14: 2018-11-13 | O14: 8817 | P14: 7908 | Q14: 9614 | R14: 11320 | U14: 43551.60972 | V14: 42 | W14: 6 | X14: 12 | Y14: 16 | Z14: 4 | AA14: 0
A15: 2018-11-14 | B15: 9056 | N15: 2018-11-14 | O15: 11485 | P15: 7318 | Q15: 9021 | R15: 10724
A16: 2018-11-15 | B16: 11387 | N16: 2018-11-15 | O16: 12677 | P16: 9677 | Q16: 11429 | R16: 13181
A17: 2018-11-16 | B17: 12179 | N17: 2018-11-16 | O17: 11604 | P17: 10592 | Q17: 12361 | R17: 14129
A18: 2018-11-17 | B18: 9928 | N18: 2018-11-17 | O18: 6010 | P18: 6419 | Q18: 8182 | R18: 9946
A19: 2018-11-18 | B19: 5627 | N19: 2018-11-18 | O19: 6082 | P19: 4935 | Q19: 6746 | R19: 8557
A20: 2018-11-19 | B20: 7239 | N20: 2018-11-19 | O20: 12213 | P20: 8058 | Q20: 9860 | R20: 11663
A21: 2018-11-20 | B21: 11954 | N21: 2018-11-20 | O21: 11455 | P21: 9975 | Q21: 11825 | R21: 13674
A22: 2018-11-21 | B22: 11002 | N22: 2018-11-21 | O22: 11787 | P22: 10126 | Q22: 11961 | R22: 13796
A23: 2018-11-22 | B23: 11572 | N23: 2018-11-22 | O23: 11958 | P23: 10808 | Q23: 12628 | R23: 14447
A24: 2018-11-23 | B24: 11675 | N24: 2018-11-23 | O24: 12036 | P24: 9633 | Q24: 11445 | R24: 13256
A25: 2018-11-24 | B25: 10178 | N25: 2018-11-24 | O25: 5742 | P25: 6544 | Q25: 8346 | R25: 10148
A26: 2018-11-25 | B26: 5743 | N26: 2018-11-25 | O26: 6261 | P26: 4976 | Q26: 6821 | R26: 8666
A27: 2018-11-26 | B27: 7402 | N27: 2018-11-26 | O27: 12336 | P27: 8555 | Q27: 10390 | R27: 12225
A28: 2018-11-27 | B28: 11895 | N28: 2018-11-27 | O28: 11230 | P28: 10288 | Q28: 12166 | R28: 14043
A29: 2018-11-28 | B29: 11082 | N29: 2018-11-28 | O29: 11772 | P29: 9884 | Q29: 11760 | R29: 13637
A30: 2018-11-29 | B30: 11290 | N30: 2018-11-29 | O30: 11980 | P30: 10619 | Q30: 12480 | R30: 14342
A31: 2018-11-30 | B31: 11840 | N31: 2018-11-30 | O31: 11910 | P31: 9835 | Q31: 11686 | R31: 13537
A32: 2018-12-01 | B32: 10191 | N32: 2018-12-01 | O32: 6582 | P32: 6385 | Q32: 8223 | R32: 10060
A33: 2018-12-02 | B33: 6436 | N33: 2018-12-02 | O33: 6274 | P33: 5000 | Q33: 6867 | R33: 8733
A34: 2018-12-03 | B34: 7464 | N34: 2018-12-03 | O34: 12507 | P34: 8708 | Q34: 10566 | R34: 12424
A35: 2018-12-04 | B35: 12168 | N35: 2018-12-04 | O35: 11817 | P35: 10242 | Q35: 12138 | R35: 14034
A36: 2018-12-05 | B36: 11365 | N36: 2018-12-05 | O36: 11365 | P36: 10400 | Q36: 12284 | R36: 14168
A37: 2018-12-06 | B37: 10961 | N37: 2018-12-06 | O37: 12056 | P37: 10097 | Q37: 11980 | R37: 13862
A38: 2018-12-07 | B38: 11670 | N38: 2018-12-07 | O38: 11700 | P38: 9983 | Q38: 11852 | R38: 13722
A39: 2018-12-08 | B39: 10211 | N39: 2018-12-08 | O39: 6092 | P39: 5990 | Q39: 7847 | R39: 9703
A40: 2018-12-09 | B40: 5708 | N40: 2018-12-09 | O40: 6085 | P40: 4558 | Q40: 6446 | R40: 8333
A41: 2018-12-10 | B41: 7400 | N41: 2018-12-10 | O41: 12344 | P41: 8806 | Q41: 10682 | R41: 12559
A42: 2018-12-11 | B42: 12081 | N42: 2018-12-11 | O42: 11852 | P42: 9885 | Q42: 11787 | R42: 13688
A43: 2018-12-12 | B43: 11457 | N43: 2018-12-12 | O43: 11587 | P43: 10332 | Q43: 12221 | R43: 14110
A44: 2018-12-13 | B44: 11153 | N44: 2018-12-13 | O44: 12113 | P44: 10429 | Q44: 12311 | R44: 14193
A45: 2018-12-14 | B45: 11810 | N45: 2018-12-14 | O45: 11734 | P45: 9893 | Q45: 11764 | R45: 13634
A46: 2018-12-15 | B46: 10013 | N46: 2018-12-15 | O46: 6003 | P46: 5850 | Q46: 7708 | R46: 9567
A47: 2018-12-16 | B47: 5835 | N47: 2018-12-16 | O47: 6171 | P47: 4541 | Q47: 6425 | R47: 8309
A48: 2018-12-17 | B48: 7176 | N48: 2018-12-17 | O48: 11933 | P48: 8880 | Q48: 10754 | R48: 12627
A49: 2018-12-18 | B49: 11764 | N49: 2018-12-18 | O49: 11433 | P49: 9605 | Q49: 11484 | R49: 13364
A50: 2018-12-19 | B50: 11197 | N50: 2018-12-19 | O50: 11510 | P50: 9957 | Q50: 11825 | R50: 13693
A51: 2018-12-20 | B51: 11174 | N51: 2018-12-20 | O51: 12246 | P51: 10297 | Q51: 12156 | R51: 14014
A52: 2018-12-21 | B52: 11867 | N52: 2018-12-21 | O52: 11992 | P52: 9977 | Q52: 11824 | R52: 13671
A53: 2018-12-22 | B53: 10242 | N53: 2018-12-22 | O53: 6102 | P53: 6062 | Q53: 7899 | R53: 9736
A54: 2018-12-23 | B54: 5871 | N54: 2018-12-23 | O54: 6118 | P54: 4697 | Q54: 6562 | R54: 8427
A55: 2018-12-24 | B55: 7381 | N55: 2018-12-24 | O55: 12372 | P55: 8907 | Q55: 10763 | R55: 12620
A56: 2018-12-25 | B56: 12180 | N56: 2018-12-25 | O56: 11701 | P56: 9925 | Q56: 11801 | R56: 13677
A57: 2018-12-26 | B57: 11184 | N57: 2018-12-26 | O57: 11577 | P57: 10237 | Q57: 12103 | R57: 13969
A58: 2018-12-27 | B58: 11194 | N58: 2018-12-27 | O58: 11863 | P58: 10422 | Q58: 12281 | R58: 14139
A59: 2018-12-28 | B59: 11612 | N59: 2018-12-28 | O59: 11862 | P59: 9722 | Q59: 11572 | R59: 13423
A60: 2018-12-29 | B60: 10245 | N60: 2018-12-29 | O60: 5414 | P60: 4354 | Q60: 6195 | R60: 8037
A61: 2018-12-30 | B61: 4789 | N61: 2018-12-30 | O61: 3980 | P61: 4192 | Q61: 6030 | R61: 7868
A62: 2018-12-31 | B62: 4967 | N62: 2018-12-31 | O62: 9140 | P62: 9315 | Q62: 11181 | R62: 13046
A63: 2019-01-01 | B63: 9036 | N63: 2019-01-01 | O63: 9178 | P63: 7622 | Q63: 9515 | R63: 11408
A64: 2019-01-02 | B64: 8871 | N64: 2019-01-02 | O64: 8934 | P64: 7370 | Q64: 9254 | R64: 11139
A65: 2019-01-03 | B65: 8919 | N65: 2019-01-03 | O65: 9286 | P65: 7726 | Q65: 9602 | R65: 11478
A66: 2019-01-04 | B66: 9269 | N66: 2019-01-04 | O66: 8864 | P66: 7451 | Q66: 9318 | R66: 11186
A67: 2019-01-05 | B67: 8127 | N67: 2019-01-05 | O67: 4711 | P67: 1231 | Q67: 3092 | R67: 4952
A68: 2019-01-06 | B68: 4900 | N68: 2019-01-06 | O68: 4784 | P68: 1992 | Q68: 3870 | R68: 5748
A69: 2019-01-07 | B69: 5519 | N69: 2019-01-07 | O69: 9220 | P69: 8692 | Q69: 10569 | R69: 12446
A70: 2019-01-08 | B70: 9128 | N70: 2019-01-08 | O70: 9452 | P70: 7891 | Q70: 9777 | R70: 11663
A71: 2019-01-09 | B71: 9388 | N71: 2019-01-09 | O71: 9599 | P71: 7651 | Q71: 9529 | R71: 11407
A72: 2019-01-10 | B72: 9507 | N72: 2019-01-10 | O72: 9387 | P72: 8230 | Q72: 10099 | R72: 11968
A73: 2019-01-11 | B73: 9203 | N73: 2019-01-11 | O73: 9392 | P73: 7674 | Q73: 9539 | R73: 11404
A74: 2019-01-12 | B74: 8724 | N74: 2019-01-12 | O74: 4668 | P74: 2417 | Q74: 4274 | R74: 6130
A75: 2019-01-13 | B75: 4521 | N75: 2019-01-13 | O75: 4097 | P75: 2242 | Q75: 4091 | R75: 5940
A76: 2019-01-14 | B76: 5039 | N76: 2019-01-14 | O76: 9143 | P76: 7576 | Q76: 9417 | R76: 11257
A77: 2019-01-15 | B77: 8858 | N77: 2019-01-15 | O77: 9113 | P77: 7788 | Q77: 9622 | R77: 11455
A78: 2019-01-16 | B78: 9376 | N78: 2019-01-16 | O78: 9316 | P78: 7592 | Q78: 9420 | R78: 11247
A79: 2019-01-17 | B79: 9431 | N79: 2019-01-17 | O79: 9682 | P79: 7775 | Q79: 9594 | R79: 11414
A80: 2019-01-18 | B80: 9498 | N80: 2019-01-18 | O80: 9583 | P80: 7890 | Q80: 9701 | R80: 11513
A81: 2019-01-19 | B81: 8740 | N81: 2019-01-19 | O81: 4721 | P81: 2854 | Q81: 4658 | R81: 6461
A82: 2019-01-20 | B82: 4537 | N82: 2019-01-20 | O82: 4025 | P82: 2344 | Q82: 4140 | R82: 5936
A83: 2019-01-21 | B83: 4697 | N83: 2019-01-21 | O83: 9192 | P83: 7503 | Q83: 9291 | R83: 11079
A84: 2019-01-22 | B84: 9171 | N84: 2019-01-22 | O84: 9046 | P84: 7725 | Q84: 9505 | R84: 11286
A85: 2019-01-23 | B85: 8965 | N85: 2019-01-23 | O85: 9338 | P85: 7710 | Q85: 9485 | R85: 11260
A86: 2019-01-24 | B86: 9526 | N86: 2019-01-24 | O86: 9310 | P86: 7940 | Q86: 9708 | R86: 11475
A87: 2019-01-25 | B87: 9208 | N87: 2019-01-25 | O87: 9648 | P87: 7700 | Q87: 9462 | R87: 11223
A88: 2019-01-26 | B88: 8758 | N88: 2019-01-26 | O88: 4585 | P88: 2905 | Q88: 4659 | R88: 6414
A89: 2019-01-27 | B89: 4681 | N89: 2019-01-27 | O89: 4490 | P89: 2249 | Q89: 3996 | R89: 5744
A90: 2019-01-28 | B90: 5097 | N90: 2019-01-28 | O90: 9245 | P90: 7755 | Q90: 9498 | R90: 11240
A91: 2019-01-29 | B91: 9111 | N91: 2019-01-29 | O91: 9382 | P91: 7752 | Q91: 9488 | R91: 11224
A92: 2019-01-30 | B92: 9384 | N92: 2019-01-30 | O92: 9047 | P92: 8057 | Q92: 9786 | R92: 11516
A93: 2019-01-31 | B93: 8968 | N93: 2019-01-31 | O93: 8894 | P93: 7851 | Q93: 9579 | R93: 11306
A94: 2019-02-01 | B94: 9109 | N94: 2019-02-01 | O94: 10055 | P94: 7667 | Q94: 9392 | R94: 11116
A95: 2019-02-02 | B95: 8939 | N95: 2019-02-02 | O95: 4730 | P95: 3039 | Q95: 4760 | R95: 6482
A96: 2019-02-03 | B96: 4878 | N96: 2019-02-03 | O96: 3957 | P96: 2623 | Q96: 4338 | R96: 6053
A97: 2019-02-04 | B97: 4706 | N97: 2019-02-04 | O97: 9308 | P97: 7351 | Q97: 9061 | R97: 10770
A98: 2019-02-05 | B98: 9122 | N98: 2019-02-05 | O98: 8500 | P98: 7686 | Q98: 9390 | R98: 11093
A99: 2019-02-06 | B99: 8332 | N99: 2019-02-06 | O99: 9078 | P99: 7300 | Q99: 9004 | R99: 10708
A100: 2019-02-07 | B100: 9162 | N100: 2019-02-07 | O100: 9320 | P100: 7580 | Q100: 9277 | R100: 10975
A101: 2019-02-08 | B101: 9269 | N101: 2019-02-08 | O101: 9241 | P101: 8323 | Q101: 10014 | R101: 11705
A102: 2019-02-09 | B102: 8589 | N102: 2019-02-09 | O102: 4975 | P102: 2616 | Q102: 4306 | R102: 5996
A103: 2019-02-10 | B103: 4837 | N103: 2019-02-10 | O103: 4472 | P103: 2459 | Q103: 4146 | R103: 5834
A104: 2019-02-11 | B104: 5060 | N104: 2019-02-11 | O104: 8858 | P104: 7825 | Q104: 9507 | R104: 11190
A105: 2019-02-12 | B105: 8980 | N105: 2019-02-12 | O105: 9003 | P105: 7217 | Q105: 8897 | R105: 10577
A106: 2019-02-13 | B106: 8830 | N106: 2019-02-13 | O106: 9086 | P106: 7767 | Q106: 9441 | R106: 11114
A107: 2019-02-14 | B107: 8913 | N107: 2019-02-14 | O107: 8847 | P107: 7791 | Q107: 9459 | R107: 11128
A108: 2019-02-15 | B108: 8970 | N108: 2019-02-15 | O108: 8921 | P108: 7850 | Q108: 9515 | R108: 11181
A109: 2019-02-16 | B109: 8067 | N109: 2019-02-16 | O109: 4629 | P109: 2793 | Q109: 4456 | R109: 6119
A110: 2019-02-17 | B110: 4642 | N110: 2019-02-17 | O110: 4220 | P110: 2228 | Q110: 3885 | R110: 5542
A111: 2019-02-18 | B111: 4875 | N111: 2019-02-18 | O111: 9039 | P111: 7228 | Q111: 8881 | R111: 10533
A112: 2019-02-19 | B112: 9199 | N112: 2019-02-19 | O112: 9445 | P112: 7367 | Q112: 9014 | R112: 10661
A113: 2019-02-20 | B113: 9282 | N113: 2019-02-20 | O113: 9094 | P113: 7924 | Q113: 9567 | R113: 11209
A114: 2019-02-21 | B114: 9233 | N114: 2019-02-21 | O114: 9172 | P114: 7782 | Q114: 9421 | R114: 11059
A115: 2019-02-22 | B115: 9130 | N115: 2019-02-22 | O115: 9480 | P115: 8055 | Q115: 9689 | R115: 11323
A116: 2019-02-23 | B116: 8498 | N116: 2019-02-23 | O116: 4629 | P116: 3511 | Q116: 5139 | R116: 6768
A117: 2019-02-24 | B117: 4514 | N117: 2019-02-24 | O117: 4119 | P117: 2618 | Q117: 4243 | R117: 5868
A118: 2019-02-25 | B118: 4947 | N118: 2019-02-25 | O118: 8950 | P118: 7292 | Q118: 8912 | R118: 10532
A119: 2019-02-26 | B119: 8863 | N119: 2019-02-26 | O119: 9344 | P119: 7466 | Q119: 9081 | R119: 10695
A120: 2019-02-27 | B120: 9359 | N120: 2019-02-27 | O120: 8981 | P120: 7585 | Q120: 9195 | R120: 10805
A121: 2019-02-28 | B121: 8794 | N121: 2019-02-28 | O121: 8681 | P121: 7675 | Q121: 9280 | R121: 10885
A122: 2019-03-01 | B122: 8838 | N122: 2019-03-01 | O122: 9645 | P122: 7763 | Q122: 9365 | R122: 10968
A123: 2019-03-02 | B123: 8985 | N123: 2019-03-02 | O123: 4708 | P123: 3380 | Q123: 4978 | R123: 6576
A124: 2019-03-03 | B124: 4578 | N124: 2019-03-03 | O124: 4377 | P124: 2766 | Q124: 4364 | R124: 5962
A125: 2019-03-04 | B125: 5133 | N125: 2019-03-04 | O125: 9088 | P125: 7574 | Q125: 9172 | R125: 10770
A126: 2019-03-05 | B126: 8767 | N126: 2019-03-05 | O126: 8794 | P126: 7759 | Q126: 9357 | R126: 10955
A127: 2019-03-06 | B127: 8855 | N127: 2019-03-06 | O127: 9597 | P127: 7224 | Q127: 8822 | R127: 10421
A128: 2019-03-07 | B128: 9737 | N128: 2019-03-07 | O128: 9264 | P128: 7723 | Q128: 9321 | R128: 10919
A129: 2019-03-08 | B129: 9148 | N129: 2019-03-08 | O129: 9433 | P129: 8449 | Q129: 10047 | R129: 11645
A130: 2019-03-09 | B130: 8783 | N130: 2019-03-09 | O130: 4724 | P130: 3347 | Q130: 4945 | R130: 6543
A131: 2019-03-10 | B131: 4202 | N131: 2019-03-10 | O131: 3778 | P131: 2868 | Q131: 4466 | R131: 6064
A132: 2019-03-11 | B132: 4931 | N132: 2019-03-11 | O132: 8622 | P132: 7242 | Q132: 8840 | R132: 10439
A133: 2019-03-12 | B133: 8570 | N133: 2019-03-12 | O133: 8900 | P133: 7169 | Q133: 8767 | R133: 10366
A134: 2019-03-13 | B134: 9036 | N134: 2019-03-13 | O134: 9146 | P134: 7536 | Q134: 9134 | R134: 10733
A135: 2019-03-14 | B135: 9028 | N135: 2019-03-14 | O135: 9209 | P135: 7287 | Q135: 8885 | R135: 10483
A136: 2019-03-15 | B136: 9067 | N136: 2019-03-15 | O136: 9340 | P136: 8017 | Q136: 9615 | R136: 11213
A137: 2019-03-16 | B137: 8533 | N137: 2019-03-16 | O137: 4137 | P137: 3256 | Q137: 4854 | R137: 6452
A138: 2019-03-17 | B138: 4114 | N138: 2019-03-17 | O138: 4611 | P138: 2319 | Q138: 3917 | R138: 5515
A139: 2019-03-18 | B139: 4736 | N139: 2019-03-18 | O139: 6595 | P139: 7544 | Q139: 9142 | R139: 10740
A140: 2019-03-19 | B140: 7128 | N140: 2019-03-19 | O140: 9241 | P140: 6882 | Q140: 8481 | R140: 10079
A141: 2019-03-20 | B141: 9161 | N141: 2019-03-20 | O141: 8669 | P141: 7493 | Q141: 9091 | R141: 10689
A142: 2019-03-21 | B142: 9069 | N142: 2019-03-21 | O142: 9834 | P142: 7116 | Q142: 8714 | R142: 10312
A143: 2019-03-22 | B143: 9555 | N143: 2019-03-22 | O143: 9861 | P143: 8004 | Q143: 9602 | R143: 11200
A144: 2019-03-23 | B144: 9118 | N144: 2019-03-23 | O144: 4748 | P144: 3318 | Q144: 4917 | R144: 6515
A145: 2019-03-24 | B145: 4429 | N145: 2019-03-24 | O145: 4264 | P145: 3146 | Q145: 4744 | R145: 6342
A146: 2019-03-25 | B146: 4823 | N146: 2019-03-25 | O146: 8461 | P146: 6963 | Q146: 8561 | R146: 10159
A147: 2019-03-26 | B147: 8859 | N147: 2019-03-26 | O147: 9356 | P147: 7882 | Q147: 9480 | R147: 11078
A148: 2019-03-27 | B148: 9082 | N148: 2019-03-27 | O148: 5296 | P148: 7609 | Q148: 9207 | R148: 10805
A149: 2019-03-28 | B149: 2555 | N149: 2019-03-28 | O149: 0 | P149: 7189 | Q149: 8787 | R149: 10385
A150: 2019-03-29 | B150: 0 | N150: 2019-03-29 | O150: 0 | P150: 6320 | Q150: 7918 | R150: 9516
A151: 2019-03-30 | B151: 0 | N151: 2019-03-30 | O151: 0 | P151: 436 | Q151: 2034 | R151: 3632
A152: 2019-03-31 | B152: 0 | N152: 2019-03-31 | O152: 0 | P152: 0 | Q152: 958 | R152: 2556
A153: 2019-04-01 | B153: 0 | N153: 2019-04-01 | O153: 0 | P153: 2839 | Q153: 4437 | R153: 6035
A154: 2019-04-02 | B154: 0 | N154: 2019-04-02 | O154: 0 | P154: 1601 | Q154: 3202 | R154: 4802
A155: 2019-04-03 | B155: 0 | N155: 2019-04-03 | O155: 0 | P155: 0 | Q155: 1465 | R155: 3078
A156: 2019-04-04 | B156: 0 | N156: 2019-04-04 | O156: 0 | P156: 0 | Q156: 571 | R156: 2193
A157: 2019-04-05 | B157: 0 | N157: 2019-04-05 | O157: 0 | P157: 0 | Q157: 0 | R157: 1476
A158: 2019-04-06 | B158: 0 | N158: 2019-04-06 | O158: 0 | P158: 0 | Q158: 0 | R158: 0
A159: 2019-04-07 | B159: 0 | N159: 2019-04-07 | O159: 0 | P159: 0 | Q159: 0 | R159: 0
A160: 2019-04-08 | B160: 0 | N160: 2019-04-08 | O160: 0 | P160: 0 | Q160: 1319 | R160: 2958
A161: 2019-04-09 | B161: 0 | N161: 2019-04-09 | O161: 0 | P161: 0 | Q161: 11 | R161: 1656
A162: 2019-04-10 | B162: 0 | N162: 2019-04-10 | O162: 0 | P162: 0 | Q162: 0 | R162: 1444
A163: 2019-04-11 | B163: 0 | N163: 2019-04-11 | O163: 0 | P163: 0 | Q163: 110 | R163: 1748
A164: 2019-04-12 | B164: 0 | N164: 2019-04-12 | O164: 0 | P164: 0 | Q164: 0 | R164: 1337
A165: 2019-04-13 | B165: 0 | N165: 2019-04-13 | O165: 0 | P165: 0 | Q165: 0 | R165: 0
A166: 2019-04-14 | B166: 0 | N166: 2019-04-14 | O166: 0 | P166: 0 | Q166: 0 | R166: 0
A167: 2019-04-15 | B167: 0 | N167: 2019-04-15 | O167: 0 | P167: 0 | Q167: 346 | R167: 1999
A168: 2019-04-16 | B168: 0 | N168: 2019-04-16 | O168: 0 | P168: 0 | Q168: 477 | R168: 2127
A169: 2019-04-17 | B169: 0 | N169: 2019-04-17 | O169: 0 | P169: 0 | Q169: 0 | R169: 1500
A170: 2019-04-18 | B170: 0 | N170: 2019-04-18 | O170: 0 | P170: 0 | Q170: 189 | R170: 1832
A171: 2019-04-19 | B171: 0 | N171: 2019-04-19 | O171: 0 | P171: 0 | Q171: 153 | R171: 1793
A172: 2019-04-20 | B172: 0 | N172: 2019-04-20 | O172: 0 | P172: 0 | Q172: 0 | R172: 0
A173: 2019-04-21 | B173: 0 | N173: 2019-04-21 | O173: 0 | P173: 0 | Q173: 0 | R173: 0
A174: 2019-04-22 | B174: 0 | N174: 2019-04-22 | O174: 0 | P174: 0 | Q174: 714 | R174: 2372
A175: 2019-04-23 | B175: 0 | N175: 2019-04-23 | O175: 0 | P175: 0 | Q175: 590 | R175: 2246
A176: 2019-04-24 | B176: 0 | N176: 2019-04-24 | O176: 0 | P176: 0 | Q176: 167 | R176: 1822
A177: 2019-04-25 | B177: 0 | N177: 2019-04-25 | O177: 0 | P177: 0 | Q177: 231 | R177: 1882
A178: 2019-04-26 | B178: 0 | N178: 2019-04-26 | O178: 0 | P178: 0 | Q178: 234 | R178: 1881
A179: 2019-04-27 | B179: 0 | N179: 2019-04-27 | O179: 0 | P179: 0 | Q179: 0 | R179: 0
A180: 2019-04-28 | B180: 0 | N180: 2019-04-28 | O180: 0 | P180: 0 | Q180: 0 | R180: 0
A181: 2019-04-29 | B181: 0 | N181: 2019-04-29 | O181: 0 | P181: 0 | Q181: 528 | R181: 2194
A182: 2019-04-30 | B182: 0 | N182: 2019-04-30 | O182: 0 | P182: 0 | Q182: 511 | R182: 2174
A183: 2019-05-01 | B183: 0 | N183: 2019-05-01 | O183: 0 | P183: 0 | Q183: 320 | R183: 1981
A184: 2019-05-02 | B184: 0 | N184: 2019-05-02 | O184: 0 | P184: 0 | Q184: 291 | R184: 1948
A185: 2019-05-03 | B185: 0 | N185: 2019-05-03 | O185: 0 | P185: 0 | Q185: 301 | R185: 1955
A186: 2019-05-04 | B186: 0 | N186: 2019-05-04 | O186: 0 | P186: 0 | Q186: 0 | R186: 0
A187: 2019-05-05 | B187: 0 | N187: 2019-05-05 | O187: 0 | P187: 0 | Q187: 0 | R187: 572
A188: 2019-05-06 | B188: 0 | N188: 2019-05-06 | O188: 0 | P188: 0 | Q188: 273 | R188: 1937
A189: 2019-05-07 | B189: 0 | N189: 2019-05-07 | O189: 0 | P189: 0 | Q189: 391 | R189: 2051
A190: 2019-05-08 | B190: 0 | N190: 2019-05-08 | O190: 0 | P190: 0 | Q190: 348 | R190: 2005
A191: 2019-05-09 | B191: 0 | N191: 2019-05-09 | O191: 0 | P191: 0 | Q191: 320 | R191: 1975
A192: 2019-05-10 | B192: 0 | N192: 2019-05-10 | O192: 0 | P192: 0 | Q192: 326 | R192: 1977
A193: 2019-05-11 | B193: 0 | N193: 2019-05-11 | O193: 0 | P193: 0 | Q193: 0 | R193: 76
A194: 2019-05-12 | B194: 0 | N194: 2019-05-12 | O194: 0 | P194: 0 | Q194: 0 | R194: 1139
A195: 2019-05-13 | B195: 0 | N195: 2019-05-13 | O195: 0 | P195: 0 | Q195: 0 | R195: 1611
A196: 2019-05-14 | B196: 0 | N196: 2019-05-14 | O196: 0 | P196: 0 | Q196: 225 | R196: 1877
A197: 2019-05-15 | B197: 0 | N197: 2019-05-15 | O197: 0 | P197: 0 | Q197: 313 | R197: 1961
A198: 2019-05-16 | B198: 0 | N198: 2019-05-16 | O198: 0 | P198: 0 | Q198: 334 | R198: 1979
A199: 2019-05-17 | B199: 0 | N199: 2019-05-17 | O199: 0 | P199: 0 | Q199: 345 | R199: 1987
A200: 2019-05-18 | B200: 0 | N200: 2019-05-18 | O200: 0 | P200: 0 | Q200: 0 | R200: 870
... 166 more rows

Sheet dataTable (hidden)
A1: Date | B1: Visits | C1: =IF(dataExtract!B2=0,NA(),dataExtract!B2) | E1: Week | F1: Date | G1: Orders | H1: 4 Weeks Prior Orders | L1: Date | M1: Orders | P1: Day | Q1: Organic Reach | R1: Paid Reach | S1: Total Reach | U1: Day | V1: Visits | X1: Visits Expected | Y1: Visits Upper Bound | Z1: Expected Range | AC1: Orders | AD1: =+dataExtract!V2 -> Womens | AE1: =+dataExtract!W2 -> Mens | AF1: =+dataExtract!X2 -> Beauty & Fragrance | AG1: =+dataExtract!Y2 -> Jewelry & Accessories | AH1: =+dataExtract!Z2 -> Children & Toys
A2: =dataExtract!A2 -> 2018-11-01 | B2: =IF(dataExtract!B2=0,NA(),IF(A2>=todayDate,NA(),dataExtract!B2)) -> 7661 | C2: =IF(dataExtract!B2=0,NA(),IF(A2>=todayDate,NA(),dataExtract!B2)) | E2: 1 | F2: =F3-7 -> 2019-02-24 | G2: =VLOOKUP(F2,dataExtract!E:F,2,FALSE) -> 2694 | H2: =VLOOKUP(reportWeekStart-(8-E2)*7,dataExtract!$E:$F,2,FALSE) -> 2754 | L2: =+dataExtract!H2 -> 2019-01-27 | M2: =+dataExtract!J2 -> 53 | P2: =dataExtract!A2 -> 2018-11-01 | Q2: =VLOOKUP(P2,dataExternalFacebook!A:M,13,FALSE) -> 76756 | R2: =S2-Q2 -> 20881.6 | S2: =VLOOKUP(P2,dataExternalFacebook!A:M,10,FALSE) -> 97637.6 | U2: =+dataExtract!N2 -> 2018-11-01 | V2: =+dataExtract!O2 -> 9823 | W2: =+dataExtract!P2 -> 6363 | X2: =+dataExtract!Q2 -> 8158 | Y2: =+dataExtract!R2 -> 9954 | Z2: =Y2-W2 -> 3591 | AC2: =dataExtract!U3 -> 43551.15139 | AD2: =+dataExtract!V3 -> 6 | AE2: =+dataExtract!W3 -> 4 | AF2: =+dataExtract!X3 -> 0 | AG2: =+dataExtract!Y3 -> 8 | AH2: =+dataExtract!Z3 -> 4
A3: =dataExtract!A3 -> 2018-11-02 | B3: =IF(dataExtract!B3=0,NA(),IF(A3>=todayDate,NA(),dataExtract!B3)) -> 9292 | E3: 2 | F3: =F4-7 -> 2019-03-03 | G3: =VLOOKUP(F3,dataExtract!E:F,2,FALSE) -> 2702 | H3: =VLOOKUP(reportWeekStart-(8-E3)*7,dataExtract!$E:$F,2,FALSE) -> 2749 | L3: =+dataExtract!H3 -> 2019-02-03 | M3: =+dataExtract!J3 -> 46 | P3: =dataExtract!A3 -> 2018-11-02 | Q3: =VLOOKUP(P3,dataExternalFacebook!A:M,13,FALSE) -> 76880 | R3: =S3-Q3 -> 20915.08 | S3: =VLOOKUP(P3,dataExternalFacebook!A:M,10,FALSE) -> 97795.08 | U3: =+dataExtract!N3 -> 2018-11-02 | V3: =+dataExtract!O3 -> 8513 | W3: =+dataExtract!P3 -> 7894 | X3: =+dataExtract!Q3 -> 9746 | Y3: =+dataExtract!R3 -> 11599 | Z3: =Y3-W3 -> 3705 | AC3: =dataExtract!U4 -> 43551.19306 | AD3: =+dataExtract!V4 -> 14 | AE3: =+dataExtract!W4 -> 12 | AF3: =+dataExtract!X4 -> 2 | AG3: =+dataExtract!Y4 -> 4 | AH3: =+dataExtract!Z4 -> 0
A4: =dataExtract!A4 -> 2018-11-03 | B4: =IF(dataExtract!B4=0,NA(),IF(A4>=todayDate,NA(),dataExtract!B4)) -> 6870 | E4: 3 | F4: =F5-7 -> 2019-03-10 | G4: =VLOOKUP(F4,dataExtract!E:F,2,FALSE) -> 2566 | H4: =VLOOKUP(reportWeekStart-(8-E4)*7,dataExtract!$E:$F,2,FALSE) -> 2735 | L4: =+dataExtract!H4 -> 2019-02-10 | M4: =+dataExtract!J4 -> 41 | P4: =dataExtract!A4 -> 2018-11-03 | Q4: =VLOOKUP(P4,dataExternalFacebook!A:M,13,FALSE) -> 76880 | R4: 20915.08 | S4: =VLOOKUP(P4,dataExternalFacebook!A:M,10,FALSE) -> 97795.08 | U4: =+dataExtract!N4 -> 2018-11-03 | V4: =+dataExtract!O4 -> 4659 | W4: =+dataExtract!P4 -> 3265 | X4: =+dataExtract!Q4 -> 5135 | Y4: =+dataExtract!R4 -> 7005 | Z4: 3740 | AC4: =dataExtract!U5 -> 43551.23472 | AD4: =+dataExtract!V5 -> 18 | AE4: =+dataExtract!W5 -> 8 | AF4: =+dataExtract!X5 -> 4 | AG4: =+dataExtract!Y5 -> 4 | AH4: =+dataExtract!Z5 -> 4
A5: =dataExtract!A5 -> 2018-11-04 | B5: =IF(dataExtract!B5=0,NA(),IF(A5>=todayDate,NA(),dataExtract!B5)) -> 4532 | E5: 4 | F5: =reportWeekStart -> 2019-03-17 | G5: =VLOOKUP(F5,dataExtract!E:F,2,FALSE) -> 2819 | H5: =VLOOKUP(reportWeekStart-(8-E5)*7,dataExtract!$E:$F,2,FALSE) -> 2795 | L5: =+dataExtract!H5 -> 2019-02-17 | M5: =+dataExtract!J5 -> 53 | P5: =dataExtract!A5 -> 2018-11-04 | Q5: =VLOOKUP(P5,dataExternalFacebook!A:M,13,FALSE) -> 76880 | R5: 21230.04 | S5: =VLOOKUP(P5,dataExternalFacebook!A:M,10,FALSE) -> 98110.04 | U5: =+dataExtract!N5 -> 2018-11-04 | V5: =+dataExtract!O5 -> 5327 | W5: =+dataExtract!P5 -> 3044 | X5: =+dataExtract!Q5 -> 4895 | Y5: =+dataExtract!R5 -> 6747 | Z5: 3703 | AC5: =dataExtract!U6 -> 43551.27639 | AD5: =+dataExtract!V6 -> 30 | AE5: =+dataExtract!W6 -> 28 | AF5: =+dataExtract!X6 -> 6 | AG5: =+dataExtract!Y6 -> 2 | AH5: =+dataExtract!Z6 -> 6
A6: =dataExtract!A6 -> 2018-11-05 | B6: =IF(dataExtract!B6=0,NA(),IF(A6>=todayDate,NA(),dataExtract!B6)) -> 5870 | L6: =+dataExtract!H6 -> 2019-02-24 | M6: =+dataExtract!J6 -> 43 | P6: =dataExtract!A6 -> 2018-11-05 | Q6: =VLOOKUP(P6,dataExternalFacebook!A:M,13,FALSE) -> 76880 | R6: 21230.04 | S6: =VLOOKUP(P6,dataExternalFacebook!A:M,10,FALSE) -> 98110.04 | U6: =+dataExtract!N6 -> 2018-11-05 | V6: =+dataExtract!O6 -> 8926 | W6: =+dataExtract!P6 -> 7085 | X6: =+dataExtract!Q6 -> 8917 | Y6: =+dataExtract!R6 -> 10750 | Z6: 3665 | AC6: =dataExtract!U7 -> 43551.31806 | AD6: =+dataExtract!V7 -> 28 | AE6: =+dataExtract!W7 -> 28 | AF6: =+dataExtract!X7 -> 16 | AG6: =+dataExtract!Y7 -> 12 | AH6: =+dataExtract!Z7 -> 14
A7: =dataExtract!A7 -> 2018-11-06 | B7: =IF(dataExtract!B7=0,NA(),IF(A7>=todayDate,NA(),dataExtract!B7)) -> 8404 | L7: =+dataExtract!H7 -> 2019-03-03 | M7: =+dataExtract!J7 -> 52 | P7: =dataExtract!A7 -> 2018-11-06 | Q7: =VLOOKUP(P7,dataExternalFacebook!A:M,13,FALSE) -> 76756 | R7: 21039.08 | S7: =VLOOKUP(P7,dataExternalFacebook!A:M,10,FALSE) -> 97795.08 | U7: =+dataExtract!N7 -> 2018-11-06 | V7: =+dataExtract!O7 -> 8464 | W7: =+dataExtract!P7 -> 7624 | X7: =+dataExtract!Q7 -> 9434 | Y7: =+dataExtract!R7 -> 11243 | Z7: 3619 | AC7: =dataExtract!U8 -> 43551.35972 | AD7: =+dataExtract!V8 -> 24 | AE7: =+dataExtract!W8 -> 16 | AF7: =+dataExtract!X8 -> 12 | AG7: =+dataExtract!Y8 -> 6 | AH7: =+dataExtract!Z8 -> 20
A8: =dataExtract!A8 -> 2018-11-07 | B8: =IF(dataExtract!B8=0,NA(),IF(A8>=todayDate,NA(),dataExtract!B8)) -> 8201 | L8: =+dataExtract!H8 -> 2019-03-10 | M8: =+dataExtract!J8 -> 46 | P8: =dataExtract!A8 -> 2018-11-07 | Q8: =VLOOKUP(P8,dataExternalFacebook!A:M,13,FALSE) -> 76756 | R8: 20881.6 | S8: =VLOOKUP(P8,dataExternalFacebook!A:M,10,FALSE) -> 97637.6 | U8: =+dataExtract!N8 -> 2018-11-07 | V8: =+dataExtract!O8 -> 8628 | W8: =+dataExtract!P8 -> 7037 | X8: =+dataExtract!Q8 -> 8849 | Y8: =+dataExtract!R8 -> 10660 | Z8: 3623 | AC8: =dataExtract!U9 -> 43551.40139 | AD8: =+dataExtract!V9 -> 40 | AE8: =+dataExtract!W9 -> 16 | AF8: =+dataExtract!X9 -> 20 | AG8: =+dataExtract!Y9 -> 6 | AH8: =+dataExtract!Z9 -> 20
A9: =dataExtract!A9 -> 2018-11-08 | B9: =IF(dataExtract!B9=0,NA(),IF(A9>=todayDate,NA(),dataExtract!B9)) -> 8182 | L9: =+dataExtract!H9 -> 2019-03-17 | M9: =+dataExtract!J9 -> 38 | P9: =dataExtract!A9 -> 2018-11-08 | Q9: =VLOOKUP(P9,dataExternalFacebook!A:M,13,FALSE) -> 76756 | R9: 20881.6 | S9: =VLOOKUP(P9,dataExternalFacebook!A:M,10,FALSE) -> 97637.6 | U9: =+dataExtract!N9 -> 2018-11-08 | V9: =+dataExtract!O9 -> 8958 | W9: =+dataExtract!P9 -> 7115 | X9: =+dataExtract!Q9 -> 8907 | Y9: =+dataExtract!R9 -> 10698 | Z9: 3583 | AC9: =dataExtract!U10 -> 43551.44306 | AD9: =+dataExtract!V10 -> 30 | AE9: =+dataExtract!W10 -> 38 | AF9: =+dataExtract!X10 -> 18 | AG9: =+dataExtract!Y10 -> 12 | AH9: =+dataExtract!Z10 -> 10
A10: =dataExtract!A10 -> 2018-11-09 | B10: =IF(dataExtract!B10=0,NA(),IF(A10>=todayDate,NA(),dataExtract!B10)) -> 8458 | P10: =dataExtract!A10 -> 2018-11-09 | Q10: =VLOOKUP(P10,dataExternalFacebook!A:M,13,FALSE) -> 81344 | R10: 22120.36 | S10: =VLOOKUP(P10,dataExternalFacebook!A:M,10,FALSE) -> 103464.36 | U10: =+dataExtract!N10 -> 2018-11-09 | V10: =+dataExtract!O10 -> 8411 | W10: =+dataExtract!P10 -> 7111 | X10: =+dataExtract!Q10 -> 8881 | Y10: =+dataExtract!R10 -> 10651 | Z10: 3540 | AC10: =dataExtract!U11 -> 43551.48472 | AD10: =+dataExtract!V11 -> 42 | AE10: =+dataExtract!W11 -> 24 | AF10: =+dataExtract!X11 -> 20 | AG10: =+dataExtract!Y11 -> 12 | AH10: =+dataExtract!Z11 -> 4
A11: =dataExtract!A11 -> 2018-11-10 | B11: =IF(dataExtract!B11=0,NA(),IF(A11>=todayDate,NA(),dataExtract!B11)) -> 6929 | P11: =dataExtract!A11 -> 2018-11-10 | Q11: =VLOOKUP(P11,dataExternalFacebook!A:M,13,FALSE) -> 84692 | R11: 23181.8 | S11: =VLOOKUP(P11,dataExternalFacebook!A:M,10,FALSE) -> 107873.8 | U11: =+dataExtract!N11 -> 2018-11-10 | V11: =+dataExtract!O11 -> 4785 | W11: =+dataExtract!P11 -> 3278 | X11: =+dataExtract!Q11 -> 5033 | Y11: =+dataExtract!R11 -> 6789 | Z11: 3511 | AC11: =dataExtract!U12 -> 43551.52639 | AD11: =+dataExtract!V12 -> 30 | AE11: =+dataExtract!W12 -> 18 | AF11: =+dataExtract!X12 -> 20 | AG11: =+dataExtract!Y12 -> 12 | AH11: =+dataExtract!Z12 -> 10
A12: =dataExtract!A12 -> 2018-11-11 | B12: =IF(dataExtract!B12=0,NA(),IF(A12>=todayDate,NA(),dataExtract!B12)) -> 4536 | P12: =dataExtract!A12 -> 2018-11-11 | Q12: =VLOOKUP(P12,dataExternalFacebook!A:M,13,FALSE) -> 85436 | R12: 23225.2 | S12: =VLOOKUP(P12,dataExternalFacebook!A:M,10,FALSE) -> 108661.2 | U12: =+dataExtract!N12 -> 2018-11-11 | V12: =+dataExtract!O12 -> 5019 | W12: =+dataExtract!P12 -> 3284 | X12: =+dataExtract!Q12 -> 5021 | Y12: =+dataExtract!R12 -> 6759 | Z12: 3475 | AC12: =dataExtract!U13 -> 43551.56806 | AD12: =+dataExtract!V13 -> 36 | AE12: =+dataExtract!W13 -> 20 | AF12: =+dataExtract!X13 -> 24 | AG12: =+dataExtract!Y13 -> 24 | AH12: =+dataExtract!Z13 -> 18
A13: =dataExtract!A13 -> 2018-11-12 | B13: =IF(dataExtract!B13=0,NA(),IF(A13>=todayDate,NA(),dataExtract!B13)) -> 5845 | P13: =dataExtract!A13 -> 2018-11-12 | Q13: =VLOOKUP(P13,dataExternalFacebook!A:M,13,FALSE) -> 85560 | R13: 23416.16 | S13: =VLOOKUP(P13,dataExternalFacebook!A:M,10,FALSE) -> 108976.16 | U13: =+dataExtract!N13 -> 2018-11-12 | V13: =+dataExtract!O13 -> 9107 | W13: =+dataExtract!P13 -> 6890 | X13: =+dataExtract!Q13 -> 8609 | Y13: =+dataExtract!R13 -> 10327 | Z13: 3437 | AC13: =dataExtract!U14 -> 43551.60972 | AD13: =+dataExtract!V14 -> 42 | AE13: =+dataExtract!W14 -> 6 | AF13: =+dataExtract!X14 -> 12 | AG13: =+dataExtract!Y14 -> 16 | AH13: =+dataExtract!Z14 -> 4
A14: =dataExtract!A14 -> 2018-11-13 | B14: =IF(dataExtract!B14=0,NA(),IF(A14>=todayDate,NA(),dataExtract!B14)) -> 8698 | P14: =dataExtract!A14 -> 2018-11-13 | Q14: =VLOOKUP(P14,dataExternalFacebook!A:M,13,FALSE) -> 79236 | R14: 21551.2 | S14: =VLOOKUP(P14,dataExternalFacebook!A:M,10,FALSE) -> 100787.2 | U14: =+dataExtract!N14 -> 2018-11-13 | V14: =+dataExtract!O14 -> 8817 | W14: =+dataExtract!P14 -> 7908 | X14: =+dataExtract!Q14 -> 9614 | Y14: =+dataExtract!R14 -> 11320 | Z14: 3412
A15: =dataExtract!A15 -> 2018-11-14 | B15: =IF(dataExtract!B15=0,NA(),IF(A15>=todayDate,NA(),dataExtract!B15)) -> 9056 | P15: =dataExtract!A15 -> 2018-11-14 | Q15: =VLOOKUP(P15,dataExternalFacebook!A:M,13,FALSE) -> 78368 | R15: 21474.32 | S15: =VLOOKUP(P15,dataExternalFacebook!A:M,10,FALSE) -> 99842.32 | U15: =+dataExtract!N15 -> 2018-11-14 | V15: =+dataExtract!O15 -> 11485 | W15: =+dataExtract!P15 -> 7318 | X15: =+dataExtract!Q15 -> 9021 | Y15: =+dataExtract!R15 -> 10724 | Z15: 3406
A16: =dataExtract!A16 -> 2018-11-15 | B16: =IF(dataExtract!B16=0,NA(),IF(A16>=todayDate,NA(),dataExtract!B16)) -> 11387 | P16: =dataExtract!A16 -> 2018-11-15 | Q16: =VLOOKUP(P16,dataExternalFacebook!A:M,13,FALSE) -> 77376 | R16: 21049 | S16: =VLOOKUP(P16,dataExternalFacebook!A:M,10,FALSE) -> 98425 | U16: =+dataExtract!N16 -> 2018-11-15 | V16: =+dataExtract!O16 -> 12677 | W16: =+dataExtract!P16 -> 9677 | X16: =+dataExtract!Q16 -> 11429 | Y16: =+dataExtract!R16 -> 13181 | Z16: 3504
A17: =dataExtract!A17 -> 2018-11-16 | B17: =IF(dataExtract!B17=0,NA(),IF(A17>=todayDate,NA(),dataExtract!B17)) -> 12179 | P17: =dataExtract!A17 -> 2018-11-16 | Q17: =VLOOKUP(P17,dataExternalFacebook!A:M,13,FALSE) -> 78244 | R17: 21125.88 | S17: =VLOOKUP(P17,dataExternalFacebook!A:M,10,FALSE) -> 99369.88 | U17: =+dataExtract!N17 -> 2018-11-16 | V17: =+dataExtract!O17 -> 11604 | W17: =+dataExtract!P17 -> 10592 | X17: =+dataExtract!Q17 -> 12361 | Y17: =+dataExtract!R17 -> 14129 | Z17: 3537
A18: =dataExtract!A18 -> 2018-11-17 | B18: =IF(dataExtract!B18=0,NA(),IF(A18>=todayDate,NA(),dataExtract!B18)) -> 9928 | P18: =dataExtract!A18 -> 2018-11-17 | Q18: =VLOOKUP(P18,dataExternalFacebook!A:M,13,FALSE) -> 81964 | R18: 22130.28 | S18: =VLOOKUP(P18,dataExternalFacebook!A:M,10,FALSE) -> 104094.28 | U18: =+dataExtract!N18 -> 2018-11-17 | V18: =+dataExtract!O18 -> 6010 | W18: =+dataExtract!P18 -> 6419 | X18: =+dataExtract!Q18 -> 8182 | Y18: =+dataExtract!R18 -> 9946 | Z18: 3527
A19: =dataExtract!A19 -> 2018-11-18 | B19: =IF(dataExtract!B19=0,NA(),IF(A19>=todayDate,NA(),dataExtract!B19)) -> 5627 | P19: =dataExtract!A19 -> 2018-11-18 | Q19: =VLOOKUP(P19,dataExternalFacebook!A:M,13,FALSE) -> 84568 | R19: 22833.36 | S19: =VLOOKUP(P19,dataExternalFacebook!A:M,10,FALSE) -> 107401.36 | U19: =+dataExtract!N19 -> 2018-11-18 | V19: =+dataExtract!O19 -> 6082 | W19: =+dataExtract!P19 -> 4935 | X19: =+dataExtract!Q19 -> 6746 | Y19: =+dataExtract!R19 -> 8557 | Z19: 3622
A20: =dataExtract!A20 -> 2018-11-19 | B20: =IF(dataExtract!B20=0,NA(),IF(A20>=todayDate,NA(),dataExtract!B20)) -> 7239 | P20: =dataExtract!A20 -> 2018-11-19 | Q20: =VLOOKUP(P20,dataExternalFacebook!A:M,13,FALSE) -> 85064 | R20: 22967.28 | S20: =VLOOKUP(P20,dataExternalFacebook!A:M,10,FALSE) -> 108031.28 | U20: =+dataExtract!N20 -> 2018-11-19 | V20: =+dataExtract!O20 -> 12213 | W20: =+dataExtract!P20 -> 8058 | X20: =+dataExtract!Q20 -> 9860 | Y20: =+dataExtract!R20 -> 11663 | Z20: 3605
A21: =dataExtract!A21 -> 2018-11-20 | B21: =IF(dataExtract!B21=0,NA(),IF(A21>=todayDate,NA(),dataExtract!B21)) -> 11954 | P21: =dataExtract!A21 -> 2018-11-20 | Q21: =VLOOKUP(P21,dataExternalFacebook!A:M,13,FALSE) -> 87916 | R21: 23737.32 | S21: =VLOOKUP(P21,dataExternalFacebook!A:M,10,FALSE) -> 111653.32 | U21: =+dataExtract!N21 -> 2018-11-20 | V21: =+dataExtract!O21 -> 11455 | W21: =+dataExtract!P21 -> 9975 | X21: =+dataExtract!Q21 -> 11825 | Y21: =+dataExtract!R21 -> 13674 | Z21: 3699
A22: =dataExtract!A22 -> 2018-11-21 | B22: =IF(dataExtract!B22=0,NA(),IF(A22>=todayDate,NA(),dataExtract!B22)) -> 11002 | P22: =dataExtract!A22 -> 2018-11-21 | Q22: =VLOOKUP(P22,dataExternalFacebook!A:M,13,FALSE) -> 87916 | R22: 23737.32 | S22: =VLOOKUP(P22,dataExternalFacebook!A:M,10,FALSE) -> 111653.32 | U22: =+dataExtract!N22 -> 2018-11-21 | V22: =+dataExtract!O22 -> 11787 | W22: =+dataExtract!P22 -> 10126 | X22: =+dataExtract!Q22 -> 11961 | Y22: =+dataExtract!R22 -> 13796 | Z22: 3670
A23: =dataExtract!A23 -> 2018-11-22 | B23: =IF(dataExtract!B23=0,NA(),IF(A23>=todayDate,NA(),dataExtract!B23)) -> 11572 | P23: =dataExtract!A23 -> 2018-11-22 | Q23: =VLOOKUP(P23,dataExternalFacebook!A:M,13,FALSE) -> 88164 | R23: 23804.28 | S23: =VLOOKUP(P23,dataExternalFacebook!A:M,10,FALSE) -> 111968.28 | U23: =+dataExtract!N23 -> 2018-11-22 | V23: =+dataExtract!O23 -> 11958 | W23: =+dataExtract!P23 -> 10808 | X23: =+dataExtract!Q23 -> 12628 | Y23: =+dataExtract!R23 -> 14447 | Z23: 3639
A24: =dataExtract!A24 -> 2018-11-23 | B24: =IF(dataExtract!B24=0,NA(),IF(A24>=todayDate,NA(),dataExtract!B24)) -> 11675 | P24: =dataExtract!A24 -> 2018-11-23 | Q24: =VLOOKUP(P24,dataExternalFacebook!A:M,13,FALSE) -> 88164 | R24: 23804.28 | S24: =VLOOKUP(P24,dataExternalFacebook!A:M,10,FALSE) -> 111968.28 | U24: =+dataExtract!N24 -> 2018-11-23 | V24: =+dataExtract!O24 -> 12036 | W24: =+dataExtract!P24 -> 9633 | X24: =+dataExtract!Q24 -> 11445 | Y24: =+dataExtract!R24 -> 13256 | Z24: 3623
A25: =dataExtract!A25 -> 2018-11-24 | B25: =IF(dataExtract!B25=0,NA(),IF(A25>=todayDate,NA(),dataExtract!B25)) -> 10178 | P25: =dataExtract!A25 -> 2018-11-24 | Q25: =VLOOKUP(P25,dataExternalFacebook!A:M,13,FALSE) -> 88164 | R25: 23804.28 | S25: =VLOOKUP(P25,dataExternalFacebook!A:M,10,FALSE) -> 111968.28 | U25: =+dataExtract!N25 -> 2018-11-24 | V25: =+dataExtract!O25 -> 5742 | W25: =+dataExtract!P25 -> 6544 | X25: =+dataExtract!Q25 -> 8346 | Y25: =+dataExtract!R25 -> 10148 | Z25: 3604
A26: =dataExtract!A26 -> 2018-11-25 | B26: =IF(dataExtract!B26=0,NA(),IF(A26>=todayDate,NA(),dataExtract!B26)) -> 5743 | P26: =dataExtract!A26 -> 2018-11-25 | Q26: =VLOOKUP(P26,dataExternalFacebook!A:M,13,FALSE) -> 90520 | R26: 24440.4 | S26: =VLOOKUP(P26,dataExternalFacebook!A:M,10,FALSE) -> 114960.4 | U26: =+dataExtract!N26 -> 2018-11-25 | V26: =+dataExtract!O26 -> 6261 | W26: =+dataExtract!P26 -> 4976 | X26: =+dataExtract!Q26 -> 6821 | Y26: =+dataExtract!R26 -> 8666 | Z26: 3690
A27: =dataExtract!A27 -> 2018-11-26 | B27: =IF(dataExtract!B27=0,NA(),IF(A27>=todayDate,NA(),dataExtract!B27)) -> 7402 | P27: =dataExtract!A27 -> 2018-11-26 | Q27: =VLOOKUP(P27,dataExternalFacebook!A:M,13,FALSE) -> 87172 | R27: 23536.44 | S27: =VLOOKUP(P27,dataExternalFacebook!A:M,10,FALSE) -> 110708.44 | U27: =+dataExtract!N27 -> 2018-11-26 | V27: =+dataExtract!O27 -> 12336 | W27: =+dataExtract!P27 -> 8555 | X27: =+dataExtract!Q27 -> 10390 | Y27: =+dataExtract!R27 -> 12225 | Z27: 3670
A28: =dataExtract!A28 -> 2018-11-27 | B28: =IF(dataExtract!B28=0,NA(),IF(A28>=todayDate,NA(),dataExtract!B28)) -> 11895 | P28: =dataExtract!A28 -> 2018-11-27 | Q28: =VLOOKUP(P28,dataExternalFacebook!A:M,13,FALSE) -> 79112 | R28: 21360.24 | S28: =VLOOKUP(P28,dataExternalFacebook!A:M,10,FALSE) -> 100472.24 | U28: =+dataExtract!N28 -> 2018-11-27 | V28: =+dataExtract!O28 -> 11230 | W28: =+dataExtract!P28 -> 10288 | X28: =+dataExtract!Q28 -> 12166 | Y28: =+dataExtract!R28 -> 14043 | Z28: 3755
A29: =dataExtract!A29 -> 2018-11-28 | B29: =IF(dataExtract!B29=0,NA(),IF(A29>=todayDate,NA(),dataExtract!B29)) -> 11082 | P29: =dataExtract!A29 -> 2018-11-28 | Q29: =VLOOKUP(P29,dataExternalFacebook!A:M,13,FALSE) -> 75888 | R29: 20489.76 | S29: =VLOOKUP(P29,dataExternalFacebook!A:M,10,FALSE) -> 96377.76 | U29: =+dataExtract!N29 -> 2018-11-28 | V29: =+dataExtract!O29 -> 11772 | W29: =+dataExtract!P29 -> 9884 | X29: =+dataExtract!Q29 -> 11760 | Y29: =+dataExtract!R29 -> 13637 | Z29: 3753
A30: =dataExtract!A30 -> 2018-11-29 | B30: =IF(dataExtract!B30=0,NA(),IF(A30>=todayDate,NA(),dataExtract!B30)) -> 11290 | P30: =dataExtract!A30 -> 2018-11-29 | Q30: =VLOOKUP(P30,dataExternalFacebook!A:M,13,FALSE) -> 77500 | R30: 20925 | S30: =VLOOKUP(P30,dataExternalFacebook!A:M,10,FALSE) -> 98425 | U30: =+dataExtract!N30 -> 2018-11-29 | V30: =+dataExtract!O30 -> 11980 | W30: =+dataExtract!P30 -> 10619 | X30: =+dataExtract!Q30 -> 12480 | Y30: =+dataExtract!R30 -> 14342 | Z30: 3723
A31: =dataExtract!A31 -> 2018-11-30 | B31: =IF(dataExtract!B31=0,NA(),IF(A31>=todayDate,NA(),dataExtract!B31)) -> 11840 | P31: =dataExtract!A31 -> 2018-11-30 | Q31: =VLOOKUP(P31,dataExternalFacebook!A:M,13,FALSE) -> 77748 | R31: 20991.96 | S31: =VLOOKUP(P31,dataExternalFacebook!A:M,10,FALSE) -> 98739.96 | U31: =+dataExtract!N31 -> 2018-11-30 | V31: =+dataExtract!O31 -> 11910 | W31: =+dataExtract!P31 -> 9835 | X31: =+dataExtract!Q31 -> 11686 | Y31: =+dataExtract!R31 -> 13537 | Z31: 3702
A32: =dataExtract!A32 -> 2018-12-01 | B32: =IF(dataExtract!B32=0,NA(),IF(A32>=todayDate,NA(),dataExtract!B32)) -> 10191 | P32: =dataExtract!A32 -> 2018-12-01 | Q32: =VLOOKUP(P32,dataExternalFacebook!A:M,13,FALSE) -> 77748 | R32: 20991.96 | S32: =VLOOKUP(P32,dataExternalFacebook!A:M,10,FALSE) -> 98739.96 | U32: =+dataExtract!N32 -> 2018-12-01 | V32: =+dataExtract!O32 -> 6582 | W32: =+dataExtract!P32 -> 6385 | X32: =+dataExtract!Q32 -> 8223 | Y32: =+dataExtract!R32 -> 10060 | Z32: 3675
A33: =dataExtract!A33 -> 2018-12-02 | B33: =IF(dataExtract!B33=0,NA(),IF(A33>=todayDate,NA(),dataExtract!B33)) -> 6436 | P33: =dataExtract!A33 -> 2018-12-02 | Q33: =VLOOKUP(P33,dataExternalFacebook!A:M,13,FALSE) -> 77500 | R33: 20925 | S33: =VLOOKUP(P33,dataExternalFacebook!A:M,10,FALSE) -> 98425 | U33: =+dataExtract!N33 -> 2018-12-02 | V33: =+dataExtract!O33 -> 6274 | W33: =+dataExtract!P33 -> 5000 | X33: =+dataExtract!Q33 -> 6867 | Y33: =+dataExtract!R33 -> 8733 | Z33: 3733
A34: =dataExtract!A34 -> 2018-12-03 | B34: =IF(dataExtract!B34=0,NA(),IF(A34>=todayDate,NA(),dataExtract!B34)) -> 7464 | P34: =dataExtract!A34 -> 2018-12-03 | Q34: =VLOOKUP(P34,dataExternalFacebook!A:M,13,FALSE) -> 77376 | R34: 20891.52 | S34: =VLOOKUP(P34,dataExternalFacebook!A:M,10,FALSE) -> 98267.52 | U34: =+dataExtract!N34 -> 2018-12-03 | V34: =+dataExtract!O34 -> 12507 | W34: =+dataExtract!P34 -> 8708 | X34: =+dataExtract!Q34 -> 10566 | Y34: =+dataExtract!R34 -> 12424 | Z34: 3716
A35: =dataExtract!A35 -> 2018-12-04 | B35: =IF(dataExtract!B35=0,NA(),IF(A35>=todayDate,NA(),dataExtract!B35)) -> 12168 | P35: =dataExtract!A35 -> 2018-12-04 | Q35: =VLOOKUP(P35,dataExternalFacebook!A:M,13,FALSE) -> 77376 | R35: 20891.52 | S35: =VLOOKUP(P35,dataExternalFacebook!A:M,10,FALSE) -> 98267.52 | U35: =+dataExtract!N35 -> 2018-12-04 | V35: =+dataExtract!O35 -> 11817 | W35: =+dataExtract!P35 -> 10242 | X35: =+dataExtract!Q35 -> 12138 | Y35: =+dataExtract!R35 -> 14034 | Z35: 3792
A36: =dataExtract!A36 -> 2018-12-05 | B36: =IF(dataExtract!B36=0,NA(),IF(A36>=todayDate,NA(),dataExtract!B36)) -> 11365 | P36: =dataExtract!A36 -> 2018-12-05 | Q36: =VLOOKUP(P36,dataExternalFacebook!A:M,13,FALSE) -> 77376 | R36: 20891.52 | S36: =VLOOKUP(P36,dataExternalFacebook!A:M,10,FALSE) -> 98267.52 | U36: =+dataExtract!N36 -> 2018-12-05 | V36: =+dataExtract!O36 -> 11365 | W36: =+dataExtract!P36 -> 10400 | X36: =+dataExtract!Q36 -> 12284 | Y36: =+dataExtract!R36 -> 14168 | Z36: 3768
A37: =dataExtract!A37 -> 2018-12-06 | B37: =IF(dataExtract!B37=0,NA(),IF(A37>=todayDate,NA(),dataExtract!B37)) -> 10961 | P37: =dataExtract!A37 -> 2018-12-06 | Q37: =VLOOKUP(P37,dataExternalFacebook!A:M,13,FALSE) -> 83204 | R37: 22465.08 | S37: =VLOOKUP(P37,dataExternalFacebook!A:M,10,FALSE) -> 105669.08 | U37: =+dataExtract!N37 -> 2018-12-06 | V37: =+dataExtract!O37 -> 12056 | W37: =+dataExtract!P37 -> 10097 | X37: =+dataExtract!Q37 -> 11980 | Y37: =+dataExtract!R37 -> 13862 | Z37: 3765
A38: =dataExtract!A38 -> 2018-12-07 | B38: =IF(dataExtract!B38=0,NA(),IF(A38>=todayDate,NA(),dataExtract!B38)) -> 11670 | P38: =dataExtract!A38 -> 2018-12-07 | Q38: =VLOOKUP(P38,dataExternalFacebook!A:M,13,FALSE) -> 90892 | R38: 24540.84 | S38: =VLOOKUP(P38,dataExternalFacebook!A:M,10,FALSE) -> 115432.84 | U38: =+dataExtract!N38 -> 2018-12-07 | V38: =+dataExtract!O38 -> 11700 | W38: =+dataExtract!P38 -> 9983 | X38: =+dataExtract!Q38 -> 11852 | Y38: =+dataExtract!R38 -> 13722 | Z38: 3739
A39: =dataExtract!A39 -> 2018-12-08 | B39: =IF(dataExtract!B39=0,NA(),IF(A39>=todayDate,NA(),dataExtract!B39)) -> 10211 | P39: =dataExtract!A39 -> 2018-12-08 | Q39: =VLOOKUP(P39,dataExternalFacebook!A:M,13,FALSE) -> 90520 | R39: 24440.4 | S39: =VLOOKUP(P39,dataExternalFacebook!A:M,10,FALSE) -> 114960.4 | U39: =+dataExtract!N39 -> 2018-12-08 | V39: =+dataExtract!O39 -> 6092 | W39: =+dataExtract!P39 -> 5990 | X39: =+dataExtract!Q39 -> 7847 | Y39: =+dataExtract!R39 -> 9703 | Z39: 3713
A40: =dataExtract!A40 -> 2018-12-09 | B40: =IF(dataExtract!B40=0,NA(),IF(A40>=todayDate,NA(),dataExtract!B40)) -> 5708 | P40: =dataExtract!A40 -> 2018-12-09 | Q40: =VLOOKUP(P40,dataExternalFacebook!A:M,13,FALSE) -> 91264 | R40: 24641.28 | S40: =VLOOKUP(P40,dataExternalFacebook!A:M,10,FALSE) -> 115905.28 | U40: =+dataExtract!N40 -> 2018-12-09 | V40: =+dataExtract!O40 -> 6085 | W40: =+dataExtract!P40 -> 4558 | X40: =+dataExtract!Q40 -> 6446 | Y40: =+dataExtract!R40 -> 8333 | Z40: 3775
A41: =dataExtract!A41 -> 2018-12-10 | B41: =IF(dataExtract!B41=0,NA(),IF(A41>=todayDate,NA(),dataExtract!B41)) -> 7400 | P41: =dataExtract!A41 -> 2018-12-10 | Q41: =VLOOKUP(P41,dataExternalFacebook!A:M,13,FALSE) -> 91264 | R41: 24641.28 | S41: =VLOOKUP(P41,dataExternalFacebook!A:M,10,FALSE) -> 115905.28 | U41: =+dataExtract!N41 -> 2018-12-10 | V41: =+dataExtract!O41 -> 12344 | W41: =+dataExtract!P41 -> 8806 | X41: =+dataExtract!Q41 -> 10682 | Y41: =+dataExtract!R41 -> 12559 | Z41: 3753
A42: =dataExtract!A42 -> 2018-12-11 | B42: =IF(dataExtract!B42=0,NA(),IF(A42>=todayDate,NA(),dataExtract!B42)) -> 12081 | P42: =dataExtract!A42 -> 2018-12-11 | Q42: =VLOOKUP(P42,dataExternalFacebook!A:M,13,FALSE) -> 91264 | R42: 24641.28 | S42: =VLOOKUP(P42,dataExternalFacebook!A:M,10,FALSE) -> 115905.28 | U42: =+dataExtract!N42 -> 2018-12-11 | V42: =+dataExtract!O42 -> 11852 | W42: =+dataExtract!P42 -> 9885 | X42: =+dataExtract!Q42 -> 11787 | Y42: =+dataExtract!R42 -> 13688 | Z42: 3803
A43: =dataExtract!A43 -> 2018-12-12 | B43: =IF(dataExtract!B43=0,NA(),IF(A43>=todayDate,NA(),dataExtract!B43)) -> 11457 | P43: =dataExtract!A43 -> 2018-12-12 | Q43: =VLOOKUP(P43,dataExternalFacebook!A:M,13,FALSE) -> 91264 | R43: 24641.28 | S43: =VLOOKUP(P43,dataExternalFacebook!A:M,10,FALSE) -> 115905.28 | U43: =+dataExtract!N43 -> 2018-12-12 | V43: =+dataExtract!O43 -> 11587 | W43: =+dataExtract!P43 -> 10332 | X43: =+dataExtract!Q43 -> 12221 | Y43: =+dataExtract!R43 -> 14110 | Z43: 3778
A44: =dataExtract!A44 -> 2018-12-13 | B44: =IF(dataExtract!B44=0,NA(),IF(A44>=todayDate,NA(),dataExtract!B44)) -> 11153 | P44: =dataExtract!A44 -> 2018-12-13 | Q44: =VLOOKUP(P44,dataExternalFacebook!A:M,13,FALSE) -> 91264 | R44: 24641.28 | S44: =VLOOKUP(P44,dataExternalFacebook!A:M,10,FALSE) -> 115905.28 | U44: =+dataExtract!N44 -> 2018-12-13 | V44: =+dataExtract!O44 -> 12113 | W44: =+dataExtract!P44 -> 10429 | X44: =+dataExtract!Q44 -> 12311 | Y44: =+dataExtract!R44 -> 14193 | Z44: 3764
A45: =dataExtract!A45 -> 2018-12-14 | B45: =IF(dataExtract!B45=0,NA(),IF(A45>=todayDate,NA(),dataExtract!B45)) -> 11810 | P45: =dataExtract!A45 -> 2018-12-14 | Q45: =VLOOKUP(P45,dataExternalFacebook!A:M,13,FALSE) -> 91512 | R45: 24708.24 | S45: =VLOOKUP(P45,dataExternalFacebook!A:M,10,FALSE) -> 116220.24 | U45: =+dataExtract!N45 -> 2018-12-14 | V45: =+dataExtract!O45 -> 11734 | W45: =+dataExtract!P45 -> 9893 | X45: =+dataExtract!Q45 -> 11764 | Y45: =+dataExtract!R45 -> 13634 | Z45: 3741
A46: =dataExtract!A46 -> 2018-12-15 | B46: =IF(dataExtract!B46=0,NA(),IF(A46>=todayDate,NA(),dataExtract!B46)) -> 10013 | P46: =dataExtract!A46 -> 2018-12-15 | Q46: =VLOOKUP(P46,dataExternalFacebook!A:M,13,FALSE) -> 89404 | R46: 24139.08 | S46: =VLOOKUP(P46,dataExternalFacebook!A:M,10,FALSE) -> 113543.08 | U46: =+dataExtract!N46 -> 2018-12-15 | V46: =+dataExtract!O46 -> 6003 | W46: =+dataExtract!P46 -> 5850 | X46: =+dataExtract!Q46 -> 7708 | Y46: =+dataExtract!R46 -> 9567 | Z46: 3717
A47: =dataExtract!A47 -> 2018-12-16 | B47: =IF(dataExtract!B47=0,NA(),IF(A47>=todayDate,NA(),dataExtract!B47)) -> 5835 | P47: =dataExtract!A47 -> 2018-12-16 | Q47: =VLOOKUP(P47,dataExternalFacebook!A:M,13,FALSE) -> 87668 | R47: 23670.36 | S47: =VLOOKUP(P47,dataExternalFacebook!A:M,10,FALSE) -> 111338.36 | U47: =+dataExtract!N47 -> 2018-12-16 | V47: =+dataExtract!O47 -> 6171 | W47: =+dataExtract!P47 -> 4541 | X47: =+dataExtract!Q47 -> 6425 | Y47: =+dataExtract!R47 -> 8309 | Z47: 3768
A48: =dataExtract!A48 -> 2018-12-17 | B48: =IF(dataExtract!B48=0,NA(),IF(A48>=todayDate,NA(),dataExtract!B48)) -> 7176 | P48: =dataExtract!A48 -> 2018-12-17 | Q48: =VLOOKUP(P48,dataExternalFacebook!A:M,13,FALSE) -> 87296 | R48: 23569.92 | S48: =VLOOKUP(P48,dataExternalFacebook!A:M,10,FALSE) -> 110865.92 | U48: =+dataExtract!N48 -> 2018-12-17 | V48: =+dataExtract!O48 -> 11933 | W48: =+dataExtract!P48 -> 8880 | X48: =+dataExtract!Q48 -> 10754 | Y48: =+dataExtract!R48 -> 12627 | Z48: 3747
A49: =dataExtract!A49 -> 2018-12-18 | B49: =IF(dataExtract!B49=0,NA(),IF(A49>=todayDate,NA(),dataExtract!B49)) -> 11764 | P49: =dataExtract!A49 -> 2018-12-18 | Q49: =VLOOKUP(P49,dataExternalFacebook!A:M,13,FALSE) -> 85560 | R49: 23101.2 | S49: =VLOOKUP(P49,dataExternalFacebook!A:M,10,FALSE) -> 108661.2 | U49: =+dataExtract!N49 -> 2018-12-18 | V49: =+dataExtract!O49 -> 11433 | W49: =+dataExtract!P49 -> 9605 | X49: =+dataExtract!Q49 -> 11484 | Y49: =+dataExtract!R49 -> 13364 | Z49: 3759
A50: =dataExtract!A50 -> 2018-12-19 | B50: =IF(dataExtract!B50=0,NA(),IF(A50>=todayDate,NA(),dataExtract!B50)) -> 11197 | P50: =dataExtract!A50 -> 2018-12-19 | Q50: =VLOOKUP(P50,dataExternalFacebook!A:M,13,FALSE) -> 86676 | R50: 23402.52 | S50: =VLOOKUP(P50,dataExternalFacebook!A:M,10,FALSE) -> 110078.52 | U50: =+dataExtract!N50 -> 2018-12-19 | V50: =+dataExtract!O50 -> 11510 | W50: =+dataExtract!P50 -> 9957 | X50: =+dataExtract!Q50 -> 11825 | Y50: =+dataExtract!R50 -> 13693 | Z50: 3736
A51: =dataExtract!A51 -> 2018-12-20 | B51: =IF(dataExtract!B51=0,NA(),IF(A51>=todayDate,NA(),dataExtract!B51)) -> 11174 | P51: =dataExtract!A51 -> 2018-12-20 | Q51: =VLOOKUP(P51,dataExternalFacebook!A:M,13,FALSE) -> 86180 | R51: 23268.6 | S51: =VLOOKUP(P51,dataExternalFacebook!A:M,10,FALSE) -> 109448.6 | U51: =+dataExtract!N51 -> 2018-12-20 | V51: =+dataExtract!O51 -> 12246 | W51: =+dataExtract!P51 -> 10297 | X51: =+dataExtract!Q51 -> 12156 | Y51: =+dataExtract!R51 -> 14014 | Z51: 3717
A52: =dataExtract!A52 -> 2018-12-21 | B52: =IF(dataExtract!B52=0,NA(),IF(A52>=todayDate,NA(),dataExtract!B52)) -> 11867 | P52: =dataExtract!A52 -> 2018-12-21 | Q52: =VLOOKUP(P52,dataExternalFacebook!A:M,13,FALSE) -> 86180 | R52: 23268.6 | S52: =VLOOKUP(P52,dataExternalFacebook!A:M,10,FALSE) -> 109448.6 | U52: =+dataExtract!N52 -> 2018-12-21 | V52: =+dataExtract!O52 -> 11992 | W52: =+dataExtract!P52 -> 9977 | X52: =+dataExtract!Q52 -> 11824 | Y52: =+dataExtract!R52 -> 13671 | Z52: 3694
A53: =dataExtract!A53 -> 2018-12-22 | B53: =IF(dataExtract!B53=0,NA(),IF(A53>=todayDate,NA(),dataExtract!B53)) -> 10242 | P53: =dataExtract!A53 -> 2018-12-22 | Q53: =VLOOKUP(P53,dataExternalFacebook!A:M,13,FALSE) -> 86180 | R53: 23268.6 | S53: =VLOOKUP(P53,dataExternalFacebook!A:M,10,FALSE) -> 109448.6 | U53: =+dataExtract!N53 -> 2018-12-22 | V53: =+dataExtract!O53 -> 6102 | W53: =+dataExtract!P53 -> 6062 | X53: =+dataExtract!Q53 -> 7899 | Y53: =+dataExtract!R53 -> 9736 | Z53: 3674
A54: =dataExtract!A54 -> 2018-12-23 | B54: =IF(dataExtract!B54=0,NA(),IF(A54>=todayDate,NA(),dataExtract!B54)) -> 5871 | P54: =dataExtract!A54 -> 2018-12-23 | Q54: =VLOOKUP(P54,dataExternalFacebook!A:M,13,FALSE) -> 84444 | R54: 22799.88 | S54: =VLOOKUP(P54,dataExternalFacebook!A:M,10,FALSE) -> 107243.88 | U54: =+dataExtract!N54 -> 2018-12-23 | V54: =+dataExtract!O54 -> 6118 | W54: =+dataExtract!P54 -> 4697 | X54: =+dataExtract!Q54 -> 6562 | Y54: =+dataExtract!R54 -> 8427 | Z54: 3730
A55: =dataExtract!A55 -> 2018-12-24 | B55: =IF(dataExtract!B55=0,NA(),IF(A55>=todayDate,NA(),dataExtract!B55)) -> 7381 | P55: =dataExtract!A55 -> 2018-12-24 | Q55: =VLOOKUP(P55,dataExternalFacebook!A:M,13,FALSE) -> 80600 | R55: 21762 | S55: =VLOOKUP(P55,dataExternalFacebook!A:M,10,FALSE) -> 102362 | U55: =+dataExtract!N55 -> 2018-12-24 | V55: =+dataExtract!O55 -> 12372 | W55: =+dataExtract!P55 -> 8907 | X55: =+dataExtract!Q55 -> 10763 | Y55: =+dataExtract!R55 -> 12620 | Z55: 3713
A56: =dataExtract!A56 -> 2018-12-25 | B56: =IF(dataExtract!B56=0,NA(),IF(A56>=todayDate,NA(),dataExtract!B56)) -> 12180 | P56: =dataExtract!A56 -> 2018-12-25 | Q56: =VLOOKUP(P56,dataExternalFacebook!A:M,13,FALSE) -> 79112 | R56: 21360.24 | S56: =VLOOKUP(P56,dataExternalFacebook!A:M,10,FALSE) -> 100472.24 | U56: =+dataExtract!N56 -> 2018-12-25 | V56: =+dataExtract!O56 -> 11701 | W56: =+dataExtract!P56 -> 9925 | X56: =+dataExtract!Q56 -> 11801 | Y56: =+dataExtract!R56 -> 13677 | Z56: 3752
A57: =dataExtract!A57 -> 2018-12-26 | B57: =IF(dataExtract!B57=0,NA(),IF(A57>=todayDate,NA(),dataExtract!B57)) -> 11184 | P57: =dataExtract!A57 -> 2018-12-26 | Q57: =VLOOKUP(P57,dataExternalFacebook!A:M,13,FALSE) -> 78616 | R57: 21226.32 | S57: =VLOOKUP(P57,dataExternalFacebook!A:M,10,FALSE) -> 99842.32 | U57: =+dataExtract!N57 -> 2018-12-26 | V57: =+dataExtract!O57 -> 11577 | W57: =+dataExtract!P57 -> 10237 | X57: =+dataExtract!Q57 -> 12103 | Y57: =+dataExtract!R57 -> 13969 | Z57: 3732
A58: =dataExtract!A58 -> 2018-12-27 | B58: =IF(dataExtract!B58=0,NA(),IF(A58>=todayDate,NA(),dataExtract!B58)) -> 11194 | P58: =dataExtract!A58 -> 2018-12-27 | Q58: =VLOOKUP(P58,dataExternalFacebook!A:M,13,FALSE) -> 77252 | R58: 20858.04 | S58: =VLOOKUP(P58,dataExternalFacebook!A:M,10,FALSE) -> 98110.04 | U58: =+dataExtract!N58 -> 2018-12-27 | V58: =+dataExtract!O58 -> 11863 | W58: =+dataExtract!P58 -> 10422 | X58: =+dataExtract!Q58 -> 12281 | Y58: =+dataExtract!R58 -> 14139 | Z58: 3717
A59: =dataExtract!A59 -> 2018-12-28 | B59: =IF(dataExtract!B59=0,NA(),IF(A59>=todayDate,NA(),dataExtract!B59)) -> 11612 | P59: =dataExtract!A59 -> 2018-12-28 | Q59: =VLOOKUP(P59,dataExternalFacebook!A:M,13,FALSE) -> 76384 | R59: 20623.68 | S59: =VLOOKUP(P59,dataExternalFacebook!A:M,10,FALSE) -> 97007.68 | U59: =+dataExtract!N59 -> 2018-12-28 | V59: =+dataExtract!O59 -> 11862 | W59: =+dataExtract!P59 -> 9722 | X59: =+dataExtract!Q59 -> 11572 | Y59: =+dataExtract!R59 -> 13423 | Z59: 3701
A60: =dataExtract!A60 -> 2018-12-29 | B60: =IF(dataExtract!B60=0,NA(),IF(A60>=todayDate,NA(),dataExtract!B60)) -> 10245 | P60: =dataExtract!A60 -> 2018-12-29 | Q60: =VLOOKUP(P60,dataExternalFacebook!A:M,13,FALSE) -> 76508 | R60: 20657.16 | S60: =VLOOKUP(P60,dataExternalFacebook!A:M,10,FALSE) -> 97165.16 | U60: =+dataExtract!N60 -> 2018-12-29 | V60: =+dataExtract!O60 -> 5414 | W60: =+dataExtract!P60 -> 4354 | X60: =+dataExtract!Q60 -> 6195 | Y60: =+dataExtract!R60 -> 8037 | Z60: 3683
A61: =dataExtract!A61 -> 2018-12-30 | B61: =IF(dataExtract!B61=0,NA(),IF(A61>=todayDate,NA(),dataExtract!B61)) -> 4789 | P61: =dataExtract!A61 -> 2018-12-30 | Q61: =VLOOKUP(P61,dataExternalFacebook!A:M,13,FALSE) -> 77004 | R61: 20791.08 | S61: =VLOOKUP(P61,dataExternalFacebook!A:M,10,FALSE) -> 97795.08 | U61: =+dataExtract!N61 -> 2018-12-30 | V61: =+dataExtract!O61 -> 3980 | W61: =+dataExtract!P61 -> 4192 | X61: =+dataExtract!Q61 -> 6030 | Y61: =+dataExtract!R61 -> 7868 | Z61: 3676
A62: =dataExtract!A62 -> 2018-12-31 | B62: =IF(dataExtract!B62=0,NA(),IF(A62>=todayDate,NA(),dataExtract!B62)) -> 4967 | P62: =dataExtract!A62 -> 2018-12-31 | Q62: =VLOOKUP(P62,dataExternalFacebook!A:M,13,FALSE) -> 77004 | R62: 20791.08 | S62: =VLOOKUP(P62,dataExternalFacebook!A:M,10,FALSE) -> 97795.08 | U62: =+dataExtract!N62 -> 2018-12-31 | V62: =+dataExtract!O62 -> 9140 | W62: =+dataExtract!P62 -> 9315 | X62: =+dataExtract!Q62 -> 11181 | Y62: =+dataExtract!R62 -> 13046 | Z62: 3731
A63: =dataExtract!A63 -> 2019-01-01 | B63: =IF(dataExtract!B63=0,NA(),IF(A63>=todayDate,NA(),dataExtract!B63)) -> 9036 | P63: =dataExtract!A63 -> 2019-01-01 | Q63: =VLOOKUP(P63,dataExternalFacebook!A:M,13,FALSE) -> 77376 | R63: 20891.52 | S63: =VLOOKUP(P63,dataExternalFacebook!A:M,10,FALSE) -> 98267.52 | U63: =+dataExtract!N63 -> 2019-01-01 | V63: =+dataExtract!O63 -> 9178 | W63: =+dataExtract!P63 -> 7622 | X63: =+dataExtract!Q63 -> 9515 | Y63: =+dataExtract!R63 -> 11408 | Z63: 3786
A64: =dataExtract!A64 -> 2019-01-02 | B64: =IF(dataExtract!B64=0,NA(),IF(A64>=todayDate,NA(),dataExtract!B64)) -> 8871 | P64: =dataExtract!A64 -> 2019-01-02 | Q64: =VLOOKUP(P64,dataExternalFacebook!A:M,13,FALSE) -> 77004 | R64: 21106.04 | S64: =VLOOKUP(P64,dataExternalFacebook!A:M,10,FALSE) -> 98110.04 | U64: =+dataExtract!N64 -> 2019-01-02 | V64: =+dataExtract!O64 -> 8934 | W64: =+dataExtract!P64 -> 7370 | X64: =+dataExtract!Q64 -> 9254 | Y64: =+dataExtract!R64 -> 11139 | Z64: 3769
A65: =dataExtract!A65 -> 2019-01-03 | B65: =IF(dataExtract!B65=0,NA(),IF(A65>=todayDate,NA(),dataExtract!B65)) -> 8919 | P65: =dataExtract!A65 -> 2019-01-03 | Q65: =VLOOKUP(P65,dataExternalFacebook!A:M,13,FALSE) -> 71052 | R65: 19499 | S65: =VLOOKUP(P65,dataExternalFacebook!A:M,10,FALSE) -> 90551 | U65: =+dataExtract!N65 -> 2019-01-03 | V65: =+dataExtract!O65 -> 9286 | W65: =+dataExtract!P65 -> 7726 | X65: =+dataExtract!Q65 -> 9602 | Y65: =+dataExtract!R65 -> 11478 | Z65: 3752
A66: =dataExtract!A66 -> 2019-01-04 | B66: =IF(dataExtract!B66=0,NA(),IF(A66>=todayDate,NA(),dataExtract!B66)) -> 9269 | P66: =dataExtract!A66 -> 2019-01-04 | Q66: =VLOOKUP(P66,dataExternalFacebook!A:M,13,FALSE) -> 63984 | R66: 17433.16 | S66: =VLOOKUP(P66,dataExternalFacebook!A:M,10,FALSE) -> 81417.16 | U66: =+dataExtract!N66 -> 2019-01-04 | V66: =+dataExtract!O66 -> 8864 | W66: =+dataExtract!P66 -> 7451 | X66: =+dataExtract!Q66 -> 9318 | Y66: =+dataExtract!R66 -> 11186 | Z66: 3735
A67: =dataExtract!A67 -> 2019-01-05 | B67: =IF(dataExtract!B67=0,NA(),IF(A67>=todayDate,NA(),dataExtract!B67)) -> 8127 | P67: =dataExtract!A67 -> 2019-01-05 | Q67: =VLOOKUP(P67,dataExternalFacebook!A:M,13,FALSE) -> 67828 | R67: =S67-Q67 -> 18471.04 | S67: =VLOOKUP(P67,dataExternalFacebook!A:M,10,FALSE) -> 86299.04 | U67: =+dataExtract!N67 -> 2019-01-05 | V67: =+dataExtract!O67 -> 4711 | W67: =+dataExtract!P67 -> 1231 | X67: =+dataExtract!Q67 -> 3092 | Y67: =+dataExtract!R67 -> 4952 | Z67: =Y67-W67 -> 3721
A68: =dataExtract!A68 -> 2019-01-06 | B68: =IF(dataExtract!B68=0,NA(),IF(A68>=todayDate,NA(),dataExtract!B68)) -> 4900 | P68: =dataExtract!A68 -> 2019-01-06 | Q68: =VLOOKUP(P68,dataExternalFacebook!A:M,13,FALSE) -> 67704 | R68: 18437.56 | S68: =VLOOKUP(P68,dataExternalFacebook!A:M,10,FALSE) -> 86141.56 | U68: =+dataExtract!N68 -> 2019-01-06 | V68: =+dataExtract!O68 -> 4784 | W68: =+dataExtract!P68 -> 1992 | X68: =+dataExtract!Q68 -> 3870 | Y68: =+dataExtract!R68 -> 5748 | Z68: 3756
A69: =dataExtract!A69 -> 2019-01-07 | B69: =IF(dataExtract!B69=0,NA(),IF(A69>=todayDate,NA(),dataExtract!B69)) -> 5519 | P69: =dataExtract!A69 -> 2019-01-07 | Q69: =VLOOKUP(P69,dataExternalFacebook!A:M,13,FALSE) -> 67456 | R69: 18528.08 | S69: =VLOOKUP(P69,dataExternalFacebook!A:M,10,FALSE) -> 85984.08 | U69: =+dataExtract!N69 -> 2019-01-07 | V69: =+dataExtract!O69 -> 9220 | W69: =+dataExtract!P69 -> 8692 | X69: =+dataExtract!Q69 -> 10569 | Y69: =+dataExtract!R69 -> 12446 | Z69: 3754
A70: =dataExtract!A70 -> 2019-01-08 | B70: =IF(dataExtract!B70=0,NA(),IF(A70>=todayDate,NA(),dataExtract!B70)) -> 9128 | P70: =dataExtract!A70 -> 2019-01-08 | Q70: =VLOOKUP(P70,dataExternalFacebook!A:M,13,FALSE) -> 68820 | R70: 18738.88 | S70: =VLOOKUP(P70,dataExternalFacebook!A:M,10,FALSE) -> 87558.88 | U70: =+dataExtract!N70 -> 2019-01-08 | V70: =+dataExtract!O70 -> 9452 | W70: =+dataExtract!P70 -> 7891 | X70: =+dataExtract!Q70 -> 9777 | Y70: =+dataExtract!R70 -> 11663 | Z70: 3772
A71: =dataExtract!A71 -> 2019-01-09 | B71: =IF(dataExtract!B71=0,NA(),IF(A71>=todayDate,NA(),dataExtract!B71)) -> 9388 | P71: =dataExtract!A71 -> 2019-01-09 | Q71: =VLOOKUP(P71,dataExternalFacebook!A:M,13,FALSE) -> 68944 | R71: 18772.36 | S71: =VLOOKUP(P71,dataExternalFacebook!A:M,10,FALSE) -> 87716.36 | U71: =+dataExtract!N71 -> 2019-01-09 | V71: =+dataExtract!O71 -> 9599 | W71: =+dataExtract!P71 -> 7651 | X71: =+dataExtract!Q71 -> 9529 | Y71: =+dataExtract!R71 -> 11407 | Z71: 3756
A72: =dataExtract!A72 -> 2019-01-10 | B72: =IF(dataExtract!B72=0,NA(),IF(A72>=todayDate,NA(),dataExtract!B72)) -> 9507 | P72: =dataExtract!A72 -> 2019-01-10 | Q72: =VLOOKUP(P72,dataExternalFacebook!A:M,13,FALSE) -> 69316 | R72: 18872.8 | S72: =VLOOKUP(P72,dataExternalFacebook!A:M,10,FALSE) -> 88188.8 | U72: =+dataExtract!N72 -> 2019-01-10 | V72: =+dataExtract!O72 -> 9387 | W72: =+dataExtract!P72 -> 8230 | X72: =+dataExtract!Q72 -> 10099 | Y72: =+dataExtract!R72 -> 11968 | Z72: 3738
A73: =dataExtract!A73 -> 2019-01-11 | B73: =IF(dataExtract!B73=0,NA(),IF(A73>=todayDate,NA(),dataExtract!B73)) -> 9203 | P73: =dataExtract!A73 -> 2019-01-11 | Q73: =VLOOKUP(P73,dataExternalFacebook!A:M,13,FALSE) -> 66588 | R73: 18136.24 | S73: =VLOOKUP(P73,dataExternalFacebook!A:M,10,FALSE) -> 84724.24 | U73: =+dataExtract!N73 -> 2019-01-11 | V73: =+dataExtract!O73 -> 9392 | W73: =+dataExtract!P73 -> 7674 | X73: =+dataExtract!Q73 -> 9539 | Y73: =+dataExtract!R73 -> 11404 | Z73: 3730
A74: =dataExtract!A74 -> 2019-01-12 | B74: =IF(dataExtract!B74=0,NA(),IF(A74>=todayDate,NA(),dataExtract!B74)) -> 8724 | P74: =dataExtract!A74 -> 2019-01-12 | Q74: =VLOOKUP(P74,dataExternalFacebook!A:M,13,FALSE) -> 65844 | R74: 18092.84 | S74: =VLOOKUP(P74,dataExternalFacebook!A:M,10,FALSE) -> 83936.84 | U74: =+dataExtract!N74 -> 2019-01-12 | V74: =+dataExtract!O74 -> 4668 | W74: =+dataExtract!P74 -> 2417 | X74: =+dataExtract!Q74 -> 4274 | Y74: =+dataExtract!R74 -> 6130 | Z74: 3713
A75: =dataExtract!A75 -> 2019-01-13 | B75: =IF(dataExtract!B75=0,NA(),IF(A75>=todayDate,NA(),dataExtract!B75)) -> 4521 | P75: =dataExtract!A75 -> 2019-01-13 | Q75: =VLOOKUP(P75,dataExternalFacebook!A:M,13,FALSE) -> 66092 | R75: 18002.32 | S75: =VLOOKUP(P75,dataExternalFacebook!A:M,10,FALSE) -> 84094.32 | U75: =+dataExtract!N75 -> 2019-01-13 | V75: =+dataExtract!O75 -> 4097 | W75: =+dataExtract!P75 -> 2242 | X75: =+dataExtract!Q75 -> 4091 | Y75: =+dataExtract!R75 -> 5940 | Z75: 3698
A76: =dataExtract!A76 -> 2019-01-14 | B76: =IF(dataExtract!B76=0,NA(),IF(A76>=todayDate,NA(),dataExtract!B76)) -> 5039 | P76: =dataExtract!A76 -> 2019-01-14 | Q76: =VLOOKUP(P76,dataExternalFacebook!A:M,13,FALSE) -> 66216 | R76: 18035.8 | S76: =VLOOKUP(P76,dataExternalFacebook!A:M,10,FALSE) -> 84251.8 | U76: =+dataExtract!N76 -> 2019-01-14 | V76: =+dataExtract!O76 -> 9143 | W76: =+dataExtract!P76 -> 7576 | X76: =+dataExtract!Q76 -> 9417 | Y76: =+dataExtract!R76 -> 11257 | Z76: 3681
A77: =dataExtract!A77 -> 2019-01-15 | B77: =IF(dataExtract!B77=0,NA(),IF(A77>=todayDate,NA(),dataExtract!B77)) -> 8858 | P77: =dataExtract!A77 -> 2019-01-15 | Q77: =VLOOKUP(P77,dataExternalFacebook!A:M,13,FALSE) -> 65844 | R77: 18092.84 | S77: =VLOOKUP(P77,dataExternalFacebook!A:M,10,FALSE) -> 83936.84 | U77: =+dataExtract!N77 -> 2019-01-15 | V77: =+dataExtract!O77 -> 9113 | W77: =+dataExtract!P77 -> 7788 | X77: =+dataExtract!Q77 -> 9622 | Y77: =+dataExtract!R77 -> 11455 | Z77: 3667
A78: =dataExtract!A78 -> 2019-01-16 | B78: =IF(dataExtract!B78=0,NA(),IF(A78>=todayDate,NA(),dataExtract!B78)) -> 9376 | P78: =dataExtract!A78 -> 2019-01-16 | Q78: =VLOOKUP(P78,dataExternalFacebook!A:M,13,FALSE) -> 64728 | R78: 17791.52 | S78: =VLOOKUP(P78,dataExternalFacebook!A:M,10,FALSE) -> 82519.52 | U78: =+dataExtract!N78 -> 2019-01-16 | V78: =+dataExtract!O78 -> 9316 | W78: =+dataExtract!P78 -> 7592 | X78: =+dataExtract!Q78 -> 9420 | Y78: =+dataExtract!R78 -> 11247 | Z78: 3655
A79: =dataExtract!A79 -> 2019-01-17 | B79: =IF(dataExtract!B79=0,NA(),IF(A79>=todayDate,NA(),dataExtract!B79)) -> 9431 | P79: =dataExtract!A79 -> 2019-01-17 | Q79: =VLOOKUP(P79,dataExternalFacebook!A:M,13,FALSE) -> 67952 | R79: 18662 | S79: =VLOOKUP(P79,dataExternalFacebook!A:M,10,FALSE) -> 86614 | U79: =+dataExtract!N79 -> 2019-01-17 | V79: =+dataExtract!O79 -> 9682 | W79: =+dataExtract!P79 -> 7775 | X79: =+dataExtract!Q79 -> 9594 | Y79: =+dataExtract!R79 -> 11414 | Z79: 3639
A80: =dataExtract!A80 -> 2019-01-18 | B80: =IF(dataExtract!B80=0,NA(),IF(A80>=todayDate,NA(),dataExtract!B80)) -> 9498 | P80: =dataExtract!A80 -> 2019-01-18 | Q80: =VLOOKUP(P80,dataExternalFacebook!A:M,13,FALSE) -> 69936 | R80: 19040.2 | S80: =VLOOKUP(P80,dataExternalFacebook!A:M,10,FALSE) -> 88976.2 | U80: =+dataExtract!N80 -> 2019-01-18 | V80: =+dataExtract!O80 -> 9583 | W80: =+dataExtract!P80 -> 7890 | X80: =+dataExtract!Q80 -> 9701 | Y80: =+dataExtract!R80 -> 11513 | Z80: 3623
A81: =dataExtract!A81 -> 2019-01-19 | B81: =IF(dataExtract!B81=0,NA(),IF(A81>=todayDate,NA(),dataExtract!B81)) -> 8740 | P81: =dataExtract!A81 -> 2019-01-19 | Q81: =VLOOKUP(P81,dataExternalFacebook!A:M,13,FALSE) -> 69936 | R81: 19040.2 | S81: =VLOOKUP(P81,dataExternalFacebook!A:M,10,FALSE) -> 88976.2 | U81: =+dataExtract!N81 -> 2019-01-19 | V81: =+dataExtract!O81 -> 4721 | W81: =+dataExtract!P81 -> 2854 | X81: =+dataExtract!Q81 -> 4658 | Y81: =+dataExtract!R81 -> 6461 | Z81: 3607
A82: =dataExtract!A82 -> 2019-01-20 | B82: =IF(dataExtract!B82=0,NA(),IF(A82>=todayDate,NA(),dataExtract!B82)) -> 4537 | P82: =dataExtract!A82 -> 2019-01-20 | Q82: =VLOOKUP(P82,dataExternalFacebook!A:M,13,FALSE) -> 69812 | R82: 19006.72 | S82: =VLOOKUP(P82,dataExternalFacebook!A:M,10,FALSE) -> 88818.72 | U82: =+dataExtract!N82 -> 2019-01-20 | V82: =+dataExtract!O82 -> 4025 | W82: =+dataExtract!P82 -> 2344 | X82: =+dataExtract!Q82 -> 4140 | Y82: =+dataExtract!R82 -> 5936 | Z82: 3592
A83: =dataExtract!A83 -> 2019-01-21 | B83: =IF(dataExtract!B83=0,NA(),IF(A83>=todayDate,NA(),dataExtract!B83)) -> 4697 | P83: =dataExtract!A83 -> 2019-01-21 | Q83: =VLOOKUP(P83,dataExternalFacebook!A:M,13,FALSE) -> 72540 | R83: 19900.76 | S83: =VLOOKUP(P83,dataExternalFacebook!A:M,10,FALSE) -> 92440.76 | U83: =+dataExtract!N83 -> 2019-01-21 | V83: =+dataExtract!O83 -> 9192 | W83: =+dataExtract!P83 -> 7503 | X83: =+dataExtract!Q83 -> 9291 | Y83: =+dataExtract!R83 -> 11079 | Z83: 3576
A84: =dataExtract!A84 -> 2019-01-22 | B84: =IF(dataExtract!B84=0,NA(),IF(A84>=todayDate,NA(),dataExtract!B84)) -> 9171 | P84: =dataExtract!A84 -> 2019-01-22 | Q84: =VLOOKUP(P84,dataExternalFacebook!A:M,13,FALSE) -> 75764 | R84: 20456.28 | S84: =VLOOKUP(P84,dataExternalFacebook!A:M,10,FALSE) -> 96220.28 | U84: =+dataExtract!N84 -> 2019-01-22 | V84: =+dataExtract!O84 -> 9046 | W84: =+dataExtract!P84 -> 7725 | X84: =+dataExtract!Q84 -> 9505 | Y84: =+dataExtract!R84 -> 11286 | Z84: 3561
A85: =dataExtract!A85 -> 2019-01-23 | B85: =IF(dataExtract!B85=0,NA(),IF(A85>=todayDate,NA(),dataExtract!B85)) -> 8965 | P85: =dataExtract!A85 -> 2019-01-23 | Q85: =VLOOKUP(P85,dataExternalFacebook!A:M,13,FALSE) -> 75516 | R85: 20389.32 | S85: =VLOOKUP(P85,dataExternalFacebook!A:M,10,FALSE) -> 95905.32 | U85: =+dataExtract!N85 -> 2019-01-23 | V85: =+dataExtract!O85 -> 9338 | W85: =+dataExtract!P85 -> 7710 | X85: =+dataExtract!Q85 -> 9485 | Y85: =+dataExtract!R85 -> 11260 | Z85: 3550
A86: =dataExtract!A86 -> 2019-01-24 | B86: =IF(dataExtract!B86=0,NA(),IF(A86>=todayDate,NA(),dataExtract!B86)) -> 9526 | P86: =dataExtract!A86 -> 2019-01-24 | Q86: =VLOOKUP(P86,dataExternalFacebook!A:M,13,FALSE) -> 74896 | R86: 20221.92 | S86: =VLOOKUP(P86,dataExternalFacebook!A:M,10,FALSE) -> 95117.92 | U86: =+dataExtract!N86 -> 2019-01-24 | V86: =+dataExtract!O86 -> 9310 | W86: =+dataExtract!P86 -> 7940 | X86: =+dataExtract!Q86 -> 9708 | Y86: =+dataExtract!R86 -> 11475 | Z86: 3535
A87: =dataExtract!A87 -> 2019-01-25 | B87: =IF(dataExtract!B87=0,NA(),IF(A87>=todayDate,NA(),dataExtract!B87)) -> 9208 | P87: =dataExtract!A87 -> 2019-01-25 | Q87: =VLOOKUP(P87,dataExternalFacebook!A:M,13,FALSE) -> 74772 | R87: 20188.44 | S87: =VLOOKUP(P87,dataExternalFacebook!A:M,10,FALSE) -> 94960.44 | U87: =+dataExtract!N87 -> 2019-01-25 | V87: =+dataExtract!O87 -> 9648 | W87: =+dataExtract!P87 -> 7700 | X87: =+dataExtract!Q87 -> 9462 | Y87: =+dataExtract!R87 -> 11223 | Z87: 3523
A88: =dataExtract!A88 -> 2019-01-26 | B88: =IF(dataExtract!B88=0,NA(),IF(A88>=todayDate,NA(),dataExtract!B88)) -> 8758 | P88: =dataExtract!A88 -> 2019-01-26 | Q88: =VLOOKUP(P88,dataExternalFacebook!A:M,13,FALSE) -> 74028 | R88: 19987.56 | S88: =VLOOKUP(P88,dataExternalFacebook!A:M,10,FALSE) -> 94015.56 | U88: =+dataExtract!N88 -> 2019-01-26 | V88: =+dataExtract!O88 -> 4585 | W88: =+dataExtract!P88 -> 2905 | X88: =+dataExtract!Q88 -> 4659 | Y88: =+dataExtract!R88 -> 6414 | Z88: 3509
A89: =dataExtract!A89 -> 2019-01-27 | B89: =IF(dataExtract!B89=0,NA(),IF(A89>=todayDate,NA(),dataExtract!B89)) -> 4681 | P89: =dataExtract!A89 -> 2019-01-27 | Q89: =VLOOKUP(P89,dataExternalFacebook!A:M,13,FALSE) -> 73780 | R89: 19920.6 | S89: =VLOOKUP(P89,dataExternalFacebook!A:M,10,FALSE) -> 93700.6 | U89: =+dataExtract!N89 -> 2019-01-27 | V89: =+dataExtract!O89 -> 4490 | W89: =+dataExtract!P89 -> 2249 | X89: =+dataExtract!Q89 -> 3996 | Y89: =+dataExtract!R89 -> 5744 | Z89: 3495
A90: =dataExtract!A90 -> 2019-01-28 | B90: =IF(dataExtract!B90=0,NA(),IF(A90>=todayDate,NA(),dataExtract!B90)) -> 5097 | P90: =dataExtract!A90 -> 2019-01-28 | Q90: =VLOOKUP(P90,dataExternalFacebook!A:M,13,FALSE) -> 74028 | R90: 19987.56 | S90: =VLOOKUP(P90,dataExternalFacebook!A:M,10,FALSE) -> 94015.56 | U90: =+dataExtract!N90 -> 2019-01-28 | V90: =+dataExtract!O90 -> 9245 | W90: =+dataExtract!P90 -> 7755 | X90: =+dataExtract!Q90 -> 9498 | Y90: =+dataExtract!R90 -> 11240 | Z90: 3485
A91: =dataExtract!A91 -> 2019-01-29 | B91: =IF(dataExtract!B91=0,NA(),IF(A91>=todayDate,NA(),dataExtract!B91)) -> 9111 | P91: =dataExtract!A91 -> 2019-01-29 | Q91: =VLOOKUP(P91,dataExternalFacebook!A:M,13,FALSE) -> 73780 | R91: 19920.6 | S91: =VLOOKUP(P91,dataExternalFacebook!A:M,10,FALSE) -> 93700.6 | U91: =+dataExtract!N91 -> 2019-01-29 | V91: =+dataExtract!O91 -> 9382 | W91: =+dataExtract!P91 -> 7752 | X91: =+dataExtract!Q91 -> 9488 | Y91: =+dataExtract!R91 -> 11224 | Z91: 3472
A92: =dataExtract!A92 -> 2019-01-30 | B92: =IF(dataExtract!B92=0,NA(),IF(A92>=todayDate,NA(),dataExtract!B92)) -> 9384 | P92: =dataExtract!A92 -> 2019-01-30 | Q92: =VLOOKUP(P92,dataExternalFacebook!A:M,13,FALSE) -> 73780 | R92: 19920.6 | S92: =VLOOKUP(P92,dataExternalFacebook!A:M,10,FALSE) -> 93700.6
A93: =dataExtract!A93 -> 2019-01-31 | B93: =IF(dataExtract!B93=0,NA(),IF(A93>=todayDate,NA(),dataExtract!B93)) -> 8968 | P93: =dataExtract!A93 -> 2019-01-31 | Q93: =VLOOKUP(P93,dataExternalFacebook!A:M,13,FALSE) -> 73780 | R93: 19920.6 | S93: =VLOOKUP(P93,dataExternalFacebook!A:M,10,FALSE) -> 93700.6
A94: =dataExtract!A94 -> 2019-02-01 | B94: =IF(dataExtract!B94=0,NA(),IF(A94>=todayDate,NA(),dataExtract!B94)) -> 9109 | P94: =dataExtract!A94 -> 2019-02-01 | Q94: =VLOOKUP(P94,dataExternalFacebook!A:M,13,FALSE) -> 71052 | R94: 19184.04 | S94: =VLOOKUP(P94,dataExternalFacebook!A:M,10,FALSE) -> 90236.04
A95: =dataExtract!A95 -> 2019-02-02 | B95: =IF(dataExtract!B95=0,NA(),IF(A95>=todayDate,NA(),dataExtract!B95)) -> 8939 | P95: =dataExtract!A95 -> 2019-02-02 | Q95: =VLOOKUP(P95,dataExternalFacebook!A:M,13,FALSE) -> 63364 | R95: 17108.28 | S95: =VLOOKUP(P95,dataExternalFacebook!A:M,10,FALSE) -> 80472.28
A96: =dataExtract!A96 -> 2019-02-03 | B96: =IF(dataExtract!B96=0,NA(),IF(A96>=todayDate,NA(),dataExtract!B96)) -> 4878 | P96: =dataExtract!A96 -> 2019-02-03 | Q96: =VLOOKUP(P96,dataExternalFacebook!A:M,13,FALSE) -> 61008 | R96: 16472.16 | S96: =VLOOKUP(P96,dataExternalFacebook!A:M,10,FALSE) -> 77480.16
A97: =dataExtract!A97 -> 2019-02-04 | B97: =IF(dataExtract!B97=0,NA(),IF(A97>=todayDate,NA(),dataExtract!B97)) -> 4706 | P97: =dataExtract!A97 -> 2019-02-04 | Q97: =VLOOKUP(P97,dataExternalFacebook!A:M,13,FALSE) -> 60140 | R97: 16237.8 | S97: =VLOOKUP(P97,dataExternalFacebook!A:M,10,FALSE) -> 76377.8
A98: =dataExtract!A98 -> 2019-02-05 | B98: =IF(dataExtract!B98=0,NA(),IF(A98>=todayDate,NA(),dataExtract!B98)) -> 9122 | P98: =dataExtract!A98 -> 2019-02-05 | Q98: =VLOOKUP(P98,dataExternalFacebook!A:M,13,FALSE) -> 129704 | R98: 35807.48 | S98: =VLOOKUP(P98,dataExternalFacebook!A:M,10,FALSE) -> 165511.48
A99: =dataExtract!A99 -> 2019-02-06 | B99: =IF(dataExtract!B99=0,NA(),IF(A99>=todayDate,NA(),dataExtract!B99)) -> 8332 | P99: =dataExtract!A99 -> 2019-02-06 | Q99: =VLOOKUP(P99,dataExternalFacebook!A:M,13,FALSE) -> 170128 | R99: 50973.92 | S99: =VLOOKUP(P99,dataExternalFacebook!A:M,10,FALSE) -> 221101.92
A100: =dataExtract!A100 -> 2019-02-07 | B100: =IF(dataExtract!B100=0,NA(),IF(A100>=todayDate,NA(),dataExtract!B100)) -> 9162 | P100: =dataExtract!A100 -> 2019-02-07 | Q100: =VLOOKUP(P100,dataExternalFacebook!A:M,13,FALSE) -> 177072 | R100: 58045.64 | S100: =VLOOKUP(P100,dataExternalFacebook!A:M,10,FALSE) -> 235117.64
A101: =dataExtract!A101 -> 2019-02-08 | B101: =IF(dataExtract!B101=0,NA(),IF(A101>=todayDate,NA(),dataExtract!B101)) -> 9269 | P101: =dataExtract!A101 -> 2019-02-08 | Q101: =VLOOKUP(P101,dataExternalFacebook!A:M,13,FALSE) -> 180792 | R101: 62829.56 | S101: =VLOOKUP(P101,dataExternalFacebook!A:M,10,FALSE) -> 243621.56
A102: =dataExtract!A102 -> 2019-02-09 | B102: =IF(dataExtract!B102=0,NA(),IF(A102>=todayDate,NA(),dataExtract!B102)) -> 8589 | P102: =dataExtract!A102 -> 2019-02-09 | Q102: =VLOOKUP(P102,dataExternalFacebook!A:M,13,FALSE) -> 181040 | R102: 66676.04 | S102: =VLOOKUP(P102,dataExternalFacebook!A:M,10,FALSE) -> 247716.04
A103: =dataExtract!A103 -> 2019-02-10 | B103: =IF(dataExtract!B103=0,NA(),IF(A103>=todayDate,NA(),dataExtract!B103)) -> 4837 | P103: =dataExtract!A103 -> 2019-02-10 | Q103: =VLOOKUP(P103,dataExternalFacebook!A:M,13,FALSE) -> 181288 | R103: 70207.56 | S103: =VLOOKUP(P103,dataExternalFacebook!A:M,10,FALSE) -> 251495.56
A104: =dataExtract!A104 -> 2019-02-11 | B104: =IF(dataExtract!B104=0,NA(),IF(A104>=todayDate,NA(),dataExtract!B104)) -> 5060 | P104: =dataExtract!A104 -> 2019-02-11 | Q104: =VLOOKUP(P104,dataExternalFacebook!A:M,13,FALSE) -> 182776 | R104: 77380.96 | S104: =VLOOKUP(P104,dataExternalFacebook!A:M,10,FALSE) -> 260156.96
A105: =dataExtract!A105 -> 2019-02-12 | B105: =IF(dataExtract!B105=0,NA(),IF(A105>=todayDate,NA(),dataExtract!B105)) -> 8980 | P105: =dataExtract!A105 -> 2019-02-12 | Q105: =VLOOKUP(P105,dataExternalFacebook!A:M,13,FALSE) -> 183272 | R105: 85546.36 | S105: =VLOOKUP(P105,dataExternalFacebook!A:M,10,FALSE) -> 268818.36
A106: =dataExtract!A106 -> 2019-02-13 | B106: =IF(dataExtract!B106=0,NA(),IF(A106>=todayDate,NA(),dataExtract!B106)) -> 8830 | P106: =dataExtract!A106 -> 2019-02-13 | Q106: =VLOOKUP(P106,dataExternalFacebook!A:M,13,FALSE) -> 184140 | R106: 91292.52 | S106: =VLOOKUP(P106,dataExternalFacebook!A:M,10,FALSE) -> 275432.52
A107: =dataExtract!A107 -> 2019-02-14 | B107: =IF(dataExtract!B107=0,NA(),IF(A107>=todayDate,NA(),dataExtract!B107)) -> 8913 | P107: =dataExtract!A107 -> 2019-02-14 | Q107: =VLOOKUP(P107,dataExternalFacebook!A:M,13,FALSE) -> 177568 | R107: 93770.04 | S107: =VLOOKUP(P107,dataExternalFacebook!A:M,10,FALSE) -> 271338.04
A108: =dataExtract!A108 -> 2019-02-15 | B108: =IF(dataExtract!B108=0,NA(),IF(A108>=todayDate,NA(),dataExtract!B108)) -> 8970 | P108: =dataExtract!A108 -> 2019-02-15 | Q108: =VLOOKUP(P108,dataExternalFacebook!A:M,13,FALSE) -> 172856 | R108: 101789.12 | S108: =VLOOKUP(P108,dataExternalFacebook!A:M,10,FALSE) -> 274645.12
A109: =dataExtract!A109 -> 2019-02-16 | B109: =IF(dataExtract!B109=0,NA(),IF(A109>=todayDate,NA(),dataExtract!B109)) -> 8067 | P109: =dataExtract!A109 -> 2019-02-16 | Q109: =VLOOKUP(P109,dataExternalFacebook!A:M,13,FALSE) -> 171864 | R109: 101993.72 | S109: =VLOOKUP(P109,dataExternalFacebook!A:M,10,FALSE) -> 273857.72
A110: =dataExtract!A110 -> 2019-02-17 | B110: =IF(dataExtract!B110=0,NA(),IF(A110>=todayDate,NA(),dataExtract!B110)) -> 4642 | P110: =dataExtract!A110 -> 2019-02-17 | Q110: =VLOOKUP(P110,dataExternalFacebook!A:M,13,FALSE) -> 173104 | R110: 102643.48 | S110: =VLOOKUP(P110,dataExternalFacebook!A:M,10,FALSE) -> 275747.48
A111: =dataExtract!A111 -> 2019-02-18 | B111: =IF(dataExtract!B111=0,NA(),IF(A111>=todayDate,NA(),dataExtract!B111)) -> 4875 | P111: =dataExtract!A111 -> 2019-02-18 | Q111: =VLOOKUP(P111,dataExternalFacebook!A:M,13,FALSE) -> 170376 | R111: 102064.4 | S111: =VLOOKUP(P111,dataExternalFacebook!A:M,10,FALSE) -> 272440.4
A112: =dataExtract!A112 -> 2019-02-19 | B112: =IF(dataExtract!B112=0,NA(),IF(A112>=todayDate,NA(),dataExtract!B112)) -> 9199 | P112: =dataExtract!A112 -> 2019-02-19 | Q112: =VLOOKUP(P112,dataExternalFacebook!A:M,13,FALSE) -> 167524 | R112: 101294.36 | S112: =VLOOKUP(P112,dataExternalFacebook!A:M,10,FALSE) -> 268818.36
A113: =dataExtract!A113 -> 2019-02-20 | B113: =IF(dataExtract!B113=0,NA(),IF(A113>=todayDate,NA(),dataExtract!B113)) -> 9282 | P113: =dataExtract!A113 -> 2019-02-20 | Q113: =VLOOKUP(P113,dataExternalFacebook!A:M,13,FALSE) -> 172856 | R113: 101789.12 | S113: =VLOOKUP(P113,dataExternalFacebook!A:M,10,FALSE) -> 274645.12
A114: =dataExtract!A114 -> 2019-02-21 | B114: =IF(dataExtract!B114=0,NA(),IF(A114>=todayDate,NA(),dataExtract!B114)) -> 9233 | P114: =dataExtract!A114 -> 2019-02-21 | Q114: =VLOOKUP(P114,dataExternalFacebook!A:M,13,FALSE) -> 171864 | R114: 101993.72 | S114: =VLOOKUP(P114,dataExternalFacebook!A:M,10,FALSE) -> 273857.72
A115: =dataExtract!A115 -> 2019-02-22 | B115: =IF(dataExtract!B115=0,NA(),IF(A115>=todayDate,NA(),dataExtract!B115)) -> 9130 | P115: =dataExtract!A115 -> 2019-02-22 | Q115: =VLOOKUP(P115,dataExternalFacebook!A:M,13,FALSE) -> 173104 | R115: 102643.48 | S115: =VLOOKUP(P115,dataExternalFacebook!A:M,10,FALSE) -> 275747.48
A116: =dataExtract!A116 -> 2019-02-23 | B116: =IF(dataExtract!B116=0,NA(),IF(A116>=todayDate,NA(),dataExtract!B116)) -> 8498 | P116: =dataExtract!A116 -> 2019-02-23 | Q116: =VLOOKUP(P116,dataExternalFacebook!A:M,13,FALSE) -> 170376 | R116: 102064.4 | S116: =VLOOKUP(P116,dataExternalFacebook!A:M,10,FALSE) -> 272440.4
A117: =dataExtract!A117 -> 2019-02-24 | B117: =IF(dataExtract!B117=0,NA(),IF(A117>=todayDate,NA(),dataExtract!B117)) -> 4514 | P117: =dataExtract!A117 -> 2019-02-24 | Q117: =VLOOKUP(P117,dataExternalFacebook!A:M,13,FALSE) -> 167524 | R117: 101294.36 | S117: =VLOOKUP(P117,dataExternalFacebook!A:M,10,FALSE) -> 268818.36
A118: =dataExtract!A118 -> 2019-02-25 | B118: =IF(dataExtract!B118=0,NA(),IF(A118>=todayDate,NA(),dataExtract!B118)) -> 4947 | P118: =dataExtract!A118 -> 2019-02-25 | Q118: =VLOOKUP(P118,dataExternalFacebook!A:M,13,FALSE) -> 172856 | R118: 101789.12 | S118: =VLOOKUP(P118,dataExternalFacebook!A:M,10,FALSE) -> 274645.12
A119: =dataExtract!A119 -> 2019-02-26 | B119: =IF(dataExtract!B119=0,NA(),IF(A119>=todayDate,NA(),dataExtract!B119)) -> 8863 | P119: =dataExtract!A119 -> 2019-02-26 | Q119: =VLOOKUP(P119,dataExternalFacebook!A:M,13,FALSE) -> 171864 | R119: 101993.72 | S119: =VLOOKUP(P119,dataExternalFacebook!A:M,10,FALSE) -> 273857.72
A120: =dataExtract!A120 -> 2019-02-27 | B120: =IF(dataExtract!B120=0,NA(),IF(A120>=todayDate,NA(),dataExtract!B120)) -> 9359 | P120: =dataExtract!A120 -> 2019-02-27 | Q120: =VLOOKUP(P120,dataExternalFacebook!A:M,13,FALSE) -> 173104 | R120: 102643.48 | S120: =VLOOKUP(P120,dataExternalFacebook!A:M,10,FALSE) -> 275747.48
A121: =dataExtract!A121 -> 2019-02-28 | B121: =IF(dataExtract!B121=0,NA(),IF(A121>=todayDate,NA(),dataExtract!B121)) -> 8794 | P121: =dataExtract!A121 -> 2019-02-28 | Q121: =VLOOKUP(P121,dataExternalFacebook!A:M,13,FALSE) -> 170376 | R121: 102064.4 | S121: =VLOOKUP(P121,dataExternalFacebook!A:M,10,FALSE) -> 272440.4
A122: =dataExtract!A122 -> 2019-03-01 | B122: =IF(dataExtract!B122=0,NA(),IF(A122>=todayDate,NA(),dataExtract!B122)) -> 8838 | P122: =dataExtract!A122 -> 2019-03-01 | Q122: =VLOOKUP(P122,dataExternalFacebook!A:M,13,FALSE) -> 167524 | R122: 101294.36 | S122: =VLOOKUP(P122,dataExternalFacebook!A:M,10,FALSE) -> 268818.36
A123: =dataExtract!A123 -> 2019-03-02 | B123: =IF(dataExtract!B123=0,NA(),IF(A123>=todayDate,NA(),dataExtract!B123)) -> 8985 | P123: =dataExtract!A123 -> 2019-03-02 | Q123: =VLOOKUP(P123,dataExternalFacebook!A:M,13,FALSE) -> 129704 | R123: 35807.48 | S123: =VLOOKUP(P123,dataExternalFacebook!A:M,10,FALSE) -> 165511.48
A124: =dataExtract!A124 -> 2019-03-03 | B124: =IF(dataExtract!B124=0,NA(),IF(A124>=todayDate,NA(),dataExtract!B124)) -> 4578 | P124: =dataExtract!A124 -> 2019-03-03 | Q124: =VLOOKUP(P124,dataExternalFacebook!A:M,13,FALSE) -> 170128 | R124: 50973.92 | S124: =VLOOKUP(P124,dataExternalFacebook!A:M,10,FALSE) -> 221101.92
A125: =dataExtract!A125 -> 2019-03-04 | B125: =IF(dataExtract!B125=0,NA(),IF(A125>=todayDate,NA(),dataExtract!B125)) -> 5133 | P125: =dataExtract!A125 -> 2019-03-04 | Q125: =VLOOKUP(P125,dataExternalFacebook!A:M,13,FALSE) -> 177072 | R125: 58045.64 | S125: =VLOOKUP(P125,dataExternalFacebook!A:M,10,FALSE) -> 235117.64
A126: =dataExtract!A126 -> 2019-03-05 | B126: =IF(dataExtract!B126=0,NA(),IF(A126>=todayDate,NA(),dataExtract!B126)) -> 8767 | P126: =dataExtract!A126 -> 2019-03-05 | Q126: =VLOOKUP(P126,dataExternalFacebook!A:M,13,FALSE) -> 180792 | R126: 62829.56 | S126: =VLOOKUP(P126,dataExternalFacebook!A:M,10,FALSE) -> 243621.56
A127: =dataExtract!A127 -> 2019-03-06 | B127: =IF(dataExtract!B127=0,NA(),IF(A127>=todayDate,NA(),dataExtract!B127)) -> 8855 | P127: =dataExtract!A127 -> 2019-03-06 | Q127: =VLOOKUP(P127,dataExternalFacebook!A:M,13,FALSE) -> 181040 | R127: 66676.04 | S127: =VLOOKUP(P127,dataExternalFacebook!A:M,10,FALSE) -> 247716.04
A128: =dataExtract!A128 -> 2019-03-07 | B128: =IF(dataExtract!B128=0,NA(),IF(A128>=todayDate,NA(),dataExtract!B128)) -> 9737 | P128: =dataExtract!A128 -> 2019-03-07 | Q128: =VLOOKUP(P128,dataExternalFacebook!A:M,13,FALSE) -> 181288 | R128: 70207.56 | S128: =VLOOKUP(P128,dataExternalFacebook!A:M,10,FALSE) -> 251495.56
A129: =dataExtract!A129 -> 2019-03-08 | B129: =IF(dataExtract!B129=0,NA(),IF(A129>=todayDate,NA(),dataExtract!B129)) -> 9148 | P129: =dataExtract!A129 -> 2019-03-08 | Q129: =VLOOKUP(P129,dataExternalFacebook!A:M,13,FALSE) -> 172856 | R129: 101789.12 | S129: =VLOOKUP(P129,dataExternalFacebook!A:M,10,FALSE) -> 274645.12
A130: =dataExtract!A130 -> 2019-03-09 | B130: =IF(dataExtract!B130=0,NA(),IF(A130>=todayDate,NA(),dataExtract!B130)) -> 8783 | P130: =dataExtract!A130 -> 2019-03-09 | Q130: =VLOOKUP(P130,dataExternalFacebook!A:M,13,FALSE) -> 171864 | R130: 101993.72 | S130: =VLOOKUP(P130,dataExternalFacebook!A:M,10,FALSE) -> 273857.72
A131: =dataExtract!A131 -> 2019-03-10 | B131: =IF(dataExtract!B131=0,NA(),IF(A131>=todayDate,NA(),dataExtract!B131)) -> 4202 | P131: =dataExtract!A131 -> 2019-03-10 | Q131: =VLOOKUP(P131,dataExternalFacebook!A:M,13,FALSE) -> 173104 | R131: =S131-Q131 -> 102643.48 | S131: =VLOOKUP(P131,dataExternalFacebook!A:M,10,FALSE) -> 275747.48
A132: =dataExtract!A132 -> 2019-03-11 | B132: =IF(dataExtract!B132=0,NA(),IF(A132>=todayDate,NA(),dataExtract!B132)) -> 4931 | P132: =dataExtract!A132 -> 2019-03-11 | Q132: =VLOOKUP(P132,dataExternalFacebook!A:M,13,FALSE) -> 170376 | R132: 102064.4 | S132: =VLOOKUP(P132,dataExternalFacebook!A:M,10,FALSE) -> 272440.4
A133: =dataExtract!A133 -> 2019-03-12 | B133: =IF(dataExtract!B133=0,NA(),IF(A133>=todayDate,NA(),dataExtract!B133)) -> 8570 | P133: =dataExtract!A133 -> 2019-03-12 | Q133: =VLOOKUP(P133,dataExternalFacebook!A:M,13,FALSE) -> 172856 | R133: 101789.12 | S133: =VLOOKUP(P133,dataExternalFacebook!A:M,10,FALSE) -> 274645.12
A134: =dataExtract!A134 -> 2019-03-13 | B134: =IF(dataExtract!B134=0,NA(),IF(A134>=todayDate,NA(),dataExtract!B134)) -> 9036 | P134: =dataExtract!A134 -> 2019-03-13 | Q134: =VLOOKUP(P134,dataExternalFacebook!A:M,13,FALSE) -> 171864 | R134: 101993.72 | S134: =VLOOKUP(P134,dataExternalFacebook!A:M,10,FALSE) -> 273857.72
A135: =dataExtract!A135 -> 2019-03-14 | B135: =IF(dataExtract!B135=0,NA(),IF(A135>=todayDate,NA(),dataExtract!B135)) -> 9028 | P135: =dataExtract!A135 -> 2019-03-14 | Q135: =VLOOKUP(P135,dataExternalFacebook!A:M,13,FALSE) -> 173104 | R135: 102643.48 | S135: =VLOOKUP(P135,dataExternalFacebook!A:M,10,FALSE) -> 275747.48
A136: =dataExtract!A136 -> 2019-03-15 | B136: =IF(dataExtract!B136=0,NA(),IF(A136>=todayDate,NA(),dataExtract!B136)) -> 9067 | P136: =dataExtract!A136 -> 2019-03-15 | Q136: =VLOOKUP(P136,dataExternalFacebook!A:M,13,FALSE) -> 170376 | R136: 102064.4 | S136: =VLOOKUP(P136,dataExternalFacebook!A:M,10,FALSE) -> 272440.4
A137: =dataExtract!A137 -> 2019-03-16 | B137: =IF(dataExtract!B137=0,NA(),IF(A137>=todayDate,NA(),dataExtract!B137)) -> 8533 | P137: =dataExtract!A137 -> 2019-03-16 | Q137: =VLOOKUP(P137,dataExternalFacebook!A:M,13,FALSE) -> 77004 | R137: 21106.04 | S137: =VLOOKUP(P137,dataExternalFacebook!A:M,10,FALSE) -> 98110.04
A138: =dataExtract!A138 -> 2019-03-17 | B138: =IF(dataExtract!B138=0,NA(),IF(A138>=todayDate,NA(),dataExtract!B138)) -> 4114 | P138: =dataExtract!A138 -> 2019-03-17 | Q138: =VLOOKUP(P138,dataExternalFacebook!A:M,13,FALSE) -> 71052 | R138: 19499 | S138: =VLOOKUP(P138,dataExternalFacebook!A:M,10,FALSE) -> 90551
A139: =dataExtract!A139 -> 2019-03-18 | B139: =IF(dataExtract!B139=0,NA(),IF(A139>=todayDate,NA(),dataExtract!B139)) -> 4736 | P139: =dataExtract!A139 -> 2019-03-18 | Q139: =VLOOKUP(P139,dataExternalFacebook!A:M,13,FALSE) -> 63984 | R139: 17433.16 | S139: =VLOOKUP(P139,dataExternalFacebook!A:M,10,FALSE) -> 81417.16
A140: =dataExtract!A140 -> 2019-03-19 | B140: =IF(dataExtract!B140=0,NA(),IF(A140>=todayDate,NA(),dataExtract!B140)) -> 7128 | P140: =dataExtract!A140 -> 2019-03-19 | Q140: =VLOOKUP(P140,dataExternalFacebook!A:M,13,FALSE) -> 67828 | R140: 18471.04 | S140: =VLOOKUP(P140,dataExternalFacebook!A:M,10,FALSE) -> 86299.04
A141: =dataExtract!A141 -> 2019-03-20 | B141: =IF(dataExtract!B141=0,NA(),IF(A141>=todayDate,NA(),dataExtract!B141)) -> 9161 | P141: =dataExtract!A141 -> 2019-03-20 | Q141: =VLOOKUP(P141,dataExternalFacebook!A:M,13,FALSE) -> 67704 | R141: 18437.56 | S141: =VLOOKUP(P141,dataExternalFacebook!A:M,10,FALSE) -> 86141.56
A142: =dataExtract!A142 -> 2019-03-21 | B142: =IF(dataExtract!B142=0,NA(),IF(A142>=todayDate,NA(),dataExtract!B142)) -> 9069 | P142: =dataExtract!A142 -> 2019-03-21 | Q142: =VLOOKUP(P142,dataExternalFacebook!A:M,13,FALSE) -> 129704 | R142: 35807.48 | S142: =VLOOKUP(P142,dataExternalFacebook!A:M,10,FALSE) -> 165511.48
A143: =dataExtract!A143 -> 2019-03-22 | B143: =IF(dataExtract!B143=0,NA(),IF(A143>=todayDate,NA(),dataExtract!B143)) -> 9555 | P143: =dataExtract!A143 -> 2019-03-22 | Q143: =VLOOKUP(P143,dataExternalFacebook!A:M,13,FALSE) -> 170128 | R143: 50973.92 | S143: =VLOOKUP(P143,dataExternalFacebook!A:M,10,FALSE) -> 221101.92
A144: =dataExtract!A144 -> 2019-03-23 | B144: =IF(dataExtract!B144=0,NA(),IF(A144>=todayDate,NA(),dataExtract!B144)) -> 9118 | P144: =dataExtract!A144 -> 2019-03-23 | Q144: =VLOOKUP(P144,dataExternalFacebook!A:M,13,FALSE) -> 177072 | R144: 58045.64 | S144: =VLOOKUP(P144,dataExternalFacebook!A:M,10,FALSE) -> 235117.64
A145: =dataExtract!A145 -> 2019-03-24 | B145: =IF(dataExtract!B145=0,NA(),IF(A145>=todayDate,NA(),dataExtract!B145)) -> 4429 | P145: =dataExtract!A145 -> 2019-03-24 | Q145: =VLOOKUP(P145,dataExternalFacebook!A:M,13,FALSE) -> 180792 | R145: 62829.56 | S145: =VLOOKUP(P145,dataExternalFacebook!A:M,10,FALSE) -> 243621.56
A146: =dataExtract!A146 -> 2019-03-25 | B146: =IF(dataExtract!B146=0,NA(),IF(A146>=todayDate,NA(),dataExtract!B146)) -> 4823 | P146: =dataExtract!A146 -> 2019-03-25 | Q146: =VLOOKUP(P146,dataExternalFacebook!A:M,13,FALSE) -> 181040 | R146: 66676.04 | S146: =VLOOKUP(P146,dataExternalFacebook!A:M,10,FALSE) -> 247716.04
A147: =dataExtract!A147 -> 2019-03-26 | B147: =IF(dataExtract!B147=0,NA(),IF(A147>=todayDate,NA(),dataExtract!B147)) -> 8859 | P147: =dataExtract!A147 -> 2019-03-26 | Q147: =VLOOKUP(P147,dataExternalFacebook!A:M,13,FALSE) -> 181288 | R147: 70207.56 | S147: =VLOOKUP(P147,dataExternalFacebook!A:M,10,FALSE) -> 251495.56
A148: =dataExtract!A148 -> 2019-03-27 | B148: =IF(dataExtract!B148=0,NA(),IF(A148>=todayDate,NA(),dataExtract!B148)) ->  | P148: =dataExtract!A148 -> 2019-03-27 | Q148: =VLOOKUP(P148,dataExternalFacebook!A:M,13,FALSE) -> 182776 | R148: 77380.96 | S148: =VLOOKUP(P148,dataExternalFacebook!A:M,10,FALSE) -> 260156.96
A149: =dataExtract!A149 -> 2019-03-28 | B149: =IF(dataExtract!B149=0,NA(),IF(A149>=todayDate,NA(),dataExtract!B149)) ->  | P149: =dataExtract!A149 -> 2019-03-28 | Q149: =VLOOKUP(P149,dataExternalFacebook!A:M,13,FALSE) -> 183272 | R149: 85546.36 | S149: =VLOOKUP(P149,dataExternalFacebook!A:M,10,FALSE) -> 268818.36
A150: =dataExtract!A150 -> 2019-03-29 | B150: =IF(dataExtract!B150=0,NA(),IF(A150>=todayDate,NA(),dataExtract!B150)) ->  | P150: =dataExtract!A150 -> 2019-03-29 | Q150: =VLOOKUP(P150,dataExternalFacebook!A:M,13,FALSE) -> 184140 | R150: 91292.52 | S150: =VLOOKUP(P150,dataExternalFacebook!A:M,10,FALSE) -> 275432.52
A151: =dataExtract!A151 -> 2019-03-30 | B151: =IF(dataExtract!B151=0,NA(),IF(A151>=todayDate,NA(),dataExtract!B151)) ->  | P151: =dataExtract!A151 -> 2019-03-30 | Q151: =VLOOKUP(P151,dataExternalFacebook!A:M,13,FALSE) -> 184140 | R151: 91292.52 | S151: =VLOOKUP(P151,dataExternalFacebook!A:M,10,FALSE) -> 275432.52
A152: =dataExtract!A152 -> 2019-03-31 | B152: =IF(dataExtract!B152=0,NA(),IF(A152>=todayDate,NA(),dataExtract!B152)) ->  | P152: =dataExtract!A152 -> 2019-03-31 | Q152: =VLOOKUP(P152,dataExternalFacebook!A:M,13,FALSE) -> 0 | R152: 0 | S152: =VLOOKUP(P152,dataExternalFacebook!A:M,10,FALSE) -> 0
A153: =dataExtract!A153 -> 2019-04-01 | B153: =IF(dataExtract!B153=0,NA(),IF(A153>=todayDate,NA(),dataExtract!B153)) ->  | P153: =dataExtract!A153 -> 2019-04-01 | Q153: =VLOOKUP(P153,dataExternalFacebook!A:M,13,FALSE) -> 0 | R153: 0 | S153: =VLOOKUP(P153,dataExternalFacebook!A:M,10,FALSE) -> 0
A154: =dataExtract!A154 -> 2019-04-02 | B154: =IF(dataExtract!B154=0,NA(),IF(A154>=todayDate,NA(),dataExtract!B154)) ->  | P154: =dataExtract!A154 -> 2019-04-02 | Q154: =VLOOKUP(P154,dataExternalFacebook!A:M,13,FALSE) -> 0 | R154: 0 | S154: =VLOOKUP(P154,dataExternalFacebook!A:M,10,FALSE) -> 0
A155: =dataExtract!A155 -> 2019-04-03 | B155: =IF(dataExtract!B155=0,NA(),IF(A155>=todayDate,NA(),dataExtract!B155)) ->  | P155: =dataExtract!A155 -> 2019-04-03 | Q155: =VLOOKUP(P155,dataExternalFacebook!A:M,13,FALSE) -> 0 | R155: 0 | S155: =VLOOKUP(P155,dataExternalFacebook!A:M,10,FALSE) -> 0
A156: =dataExtract!A156 -> 2019-04-04 | B156: =IF(dataExtract!B156=0,NA(),IF(A156>=todayDate,NA(),dataExtract!B156)) ->  | P156: =dataExtract!A156 -> 2019-04-04 | Q156: =VLOOKUP(P156,dataExternalFacebook!A:M,13,FALSE) -> 0 | R156: 0 | S156: =VLOOKUP(P156,dataExternalFacebook!A:M,10,FALSE) -> 0
A157: =dataExtract!A157 -> 2019-04-05 | B157: =IF(dataExtract!B157=0,NA(),IF(A157>=todayDate,NA(),dataExtract!B157)) ->  | P157: =dataExtract!A157 -> 2019-04-05 | Q157: =VLOOKUP(P157,dataExternalFacebook!A:M,13,FALSE) -> 0 | R157: 0 | S157: =VLOOKUP(P157,dataExternalFacebook!A:M,10,FALSE) -> 0
A158: =dataExtract!A158 -> 2019-04-06 | B158: =IF(dataExtract!B158=0,NA(),IF(A158>=todayDate,NA(),dataExtract!B158)) ->  | P158: =dataExtract!A158 -> 2019-04-06 | Q158: =VLOOKUP(P158,dataExternalFacebook!A:M,13,FALSE) -> 0 | R158: 0 | S158: =VLOOKUP(P158,dataExternalFacebook!A:M,10,FALSE) -> 0
A159: =dataExtract!A159 -> 2019-04-07 | B159: =IF(dataExtract!B159=0,NA(),IF(A159>=todayDate,NA(),dataExtract!B159)) ->  | P159: =dataExtract!A159 -> 2019-04-07 | Q159: =VLOOKUP(P159,dataExternalFacebook!A:M,13,FALSE) -> 0 | R159: 0 | S159: =VLOOKUP(P159,dataExternalFacebook!A:M,10,FALSE) -> 0
A160: =dataExtract!A160 -> 2019-04-08 | B160: =IF(dataExtract!B160=0,NA(),IF(A160>=todayDate,NA(),dataExtract!B160)) ->  | P160: =dataExtract!A160 -> 2019-04-08 | Q160: =VLOOKUP(P160,dataExternalFacebook!A:M,13,FALSE) -> 0 | R160: 0 | S160: =VLOOKUP(P160,dataExternalFacebook!A:M,10,FALSE) -> 0
A161: =dataExtract!A161 -> 2019-04-09 | B161: =IF(dataExtract!B161=0,NA(),IF(A161>=todayDate,NA(),dataExtract!B161)) ->  | P161: =dataExtract!A161 -> 2019-04-09 | Q161: =VLOOKUP(P161,dataExternalFacebook!A:M,13,FALSE) -> 0 | R161: 0 | S161: =VLOOKUP(P161,dataExternalFacebook!A:M,10,FALSE) -> 0
A162: =dataExtract!A162 -> 2019-04-10 | B162: =IF(dataExtract!B162=0,NA(),IF(A162>=todayDate,NA(),dataExtract!B162)) ->  | P162: =dataExtract!A162 -> 2019-04-10 | Q162: =VLOOKUP(P162,dataExternalFacebook!A:M,13,FALSE) -> 0 | R162: 0 | S162: =VLOOKUP(P162,dataExternalFacebook!A:M,10,FALSE) -> 0
A163: =dataExtract!A163 -> 2019-04-11 | B163: =IF(dataExtract!B163=0,NA(),IF(A163>=todayDate,NA(),dataExtract!B163)) ->  | P163: =dataExtract!A163 -> 2019-04-11 | Q163: =VLOOKUP(P163,dataExternalFacebook!A:M,13,FALSE) -> 0 | R163: 0 | S163: =VLOOKUP(P163,dataExternalFacebook!A:M,10,FALSE) -> 0
A164: =dataExtract!A164 -> 2019-04-12 | B164: =IF(dataExtract!B164=0,NA(),IF(A164>=todayDate,NA(),dataExtract!B164)) ->  | P164: =dataExtract!A164 -> 2019-04-12 | Q164: =VLOOKUP(P164,dataExternalFacebook!A:M,13,FALSE) -> 0 | R164: 0 | S164: =VLOOKUP(P164,dataExternalFacebook!A:M,10,FALSE) -> 0
A165: =dataExtract!A165 -> 2019-04-13 | B165: =IF(dataExtract!B165=0,NA(),IF(A165>=todayDate,NA(),dataExtract!B165)) ->  | P165: =dataExtract!A165 -> 2019-04-13 | Q165: =VLOOKUP(P165,dataExternalFacebook!A:M,13,FALSE) -> 0 | R165: 0 | S165: =VLOOKUP(P165,dataExternalFacebook!A:M,10,FALSE) -> 0
A166: =dataExtract!A166 -> 2019-04-14 | B166: =IF(dataExtract!B166=0,NA(),IF(A166>=todayDate,NA(),dataExtract!B166)) ->  | P166: =dataExtract!A166 -> 2019-04-14 | Q166: =VLOOKUP(P166,dataExternalFacebook!A:M,13,FALSE) -> 0 | R166: 0 | S166: =VLOOKUP(P166,dataExternalFacebook!A:M,10,FALSE) -> 0
A167: =dataExtract!A167 -> 2019-04-15 | B167: =IF(dataExtract!B167=0,NA(),IF(A167>=todayDate,NA(),dataExtract!B167)) ->  | P167: =dataExtract!A167 -> 2019-04-15 | Q167: =VLOOKUP(P167,dataExternalFacebook!A:M,13,FALSE) -> 0 | R167: 0 | S167: =VLOOKUP(P167,dataExternalFacebook!A:M,10,FALSE) -> 0
A168: =dataExtract!A168 -> 2019-04-16 | B168: =IF(dataExtract!B168=0,NA(),IF(A168>=todayDate,NA(),dataExtract!B168)) ->  | P168: =dataExtract!A168 -> 2019-04-16 | Q168: =VLOOKUP(P168,dataExternalFacebook!A:M,13,FALSE) -> 0 | R168: 0 | S168: =VLOOKUP(P168,dataExternalFacebook!A:M,10,FALSE) -> 0
A169: =dataExtract!A169 -> 2019-04-17 | B169: =IF(dataExtract!B169=0,NA(),IF(A169>=todayDate,NA(),dataExtract!B169)) ->  | P169: =dataExtract!A169 -> 2019-04-17 | Q169: =VLOOKUP(P169,dataExternalFacebook!A:M,13,FALSE) -> 0 | R169: 0 | S169: =VLOOKUP(P169,dataExternalFacebook!A:M,10,FALSE) -> 0
A170: =dataExtract!A170 -> 2019-04-18 | B170: =IF(dataExtract!B170=0,NA(),IF(A170>=todayDate,NA(),dataExtract!B170)) ->  | P170: =dataExtract!A170 -> 2019-04-18 | Q170: =VLOOKUP(P170,dataExternalFacebook!A:M,13,FALSE) -> 0 | R170: 0 | S170: =VLOOKUP(P170,dataExternalFacebook!A:M,10,FALSE) -> 0
A171: =dataExtract!A171 -> 2019-04-19 | B171: =IF(dataExtract!B171=0,NA(),IF(A171>=todayDate,NA(),dataExtract!B171)) ->  | P171: =dataExtract!A171 -> 2019-04-19 | Q171: =VLOOKUP(P171,dataExternalFacebook!A:M,13,FALSE) -> 0 | R171: 0 | S171: =VLOOKUP(P171,dataExternalFacebook!A:M,10,FALSE) -> 0
A172: =dataExtract!A172 -> 2019-04-20 | B172: =IF(dataExtract!B172=0,NA(),IF(A172>=todayDate,NA(),dataExtract!B172)) ->  | P172: =dataExtract!A172 -> 2019-04-20 | Q172: =VLOOKUP(P172,dataExternalFacebook!A:M,13,FALSE) -> 0 | R172: 0 | S172: =VLOOKUP(P172,dataExternalFacebook!A:M,10,FALSE) -> 0
A173: =dataExtract!A173 -> 2019-04-21 | B173: =IF(dataExtract!B173=0,NA(),IF(A173>=todayDate,NA(),dataExtract!B173)) ->  | P173: =dataExtract!A173 -> 2019-04-21 | Q173: =VLOOKUP(P173,dataExternalFacebook!A:M,13,FALSE) -> 0 | R173: 0 | S173: =VLOOKUP(P173,dataExternalFacebook!A:M,10,FALSE) -> 0
A174: =dataExtract!A174 -> 2019-04-22 | B174: =IF(dataExtract!B174=0,NA(),IF(A174>=todayDate,NA(),dataExtract!B174)) ->  | P174: =dataExtract!A174 -> 2019-04-22 | Q174: =VLOOKUP(P174,dataExternalFacebook!A:M,13,FALSE) -> 0 | R174: 0 | S174: =VLOOKUP(P174,dataExternalFacebook!A:M,10,FALSE) -> 0
A175: =dataExtract!A175 -> 2019-04-23 | B175: =IF(dataExtract!B175=0,NA(),IF(A175>=todayDate,NA(),dataExtract!B175)) ->  | P175: =dataExtract!A175 -> 2019-04-23 | Q175: =VLOOKUP(P175,dataExternalFacebook!A:M,13,FALSE) -> 0 | R175: 0 | S175: =VLOOKUP(P175,dataExternalFacebook!A:M,10,FALSE) -> 0
A176: =dataExtract!A176 -> 2019-04-24 | B176: =IF(dataExtract!B176=0,NA(),IF(A176>=todayDate,NA(),dataExtract!B176)) ->  | P176: =dataExtract!A176 -> 2019-04-24 | Q176: =VLOOKUP(P176,dataExternalFacebook!A:M,13,FALSE) -> 0 | R176: 0 | S176: =VLOOKUP(P176,dataExternalFacebook!A:M,10,FALSE) -> 0
A177: =dataExtract!A177 -> 2019-04-25 | B177: =IF(dataExtract!B177=0,NA(),IF(A177>=todayDate,NA(),dataExtract!B177)) ->  | P177: =dataExtract!A177 -> 2019-04-25 | Q177: =VLOOKUP(P177,dataExternalFacebook!A:M,13,FALSE) -> 0 | R177: 0 | S177: =VLOOKUP(P177,dataExternalFacebook!A:M,10,FALSE) -> 0
A178: =dataExtract!A178 -> 2019-04-26 | B178: =IF(dataExtract!B178=0,NA(),IF(A178>=todayDate,NA(),dataExtract!B178)) ->  | P178: =dataExtract!A178 -> 2019-04-26 | Q178: =VLOOKUP(P178,dataExternalFacebook!A:M,13,FALSE) -> 0 | R178: 0 | S178: =VLOOKUP(P178,dataExternalFacebook!A:M,10,FALSE) -> 0
A179: =dataExtract!A179 -> 2019-04-27 | B179: =IF(dataExtract!B179=0,NA(),IF(A179>=todayDate,NA(),dataExtract!B179)) ->  | P179: =dataExtract!A179 -> 2019-04-27 | Q179: =VLOOKUP(P179,dataExternalFacebook!A:M,13,FALSE) -> 0 | R179: 0 | S179: =VLOOKUP(P179,dataExternalFacebook!A:M,10,FALSE) -> 0
A180: =dataExtract!A180 -> 2019-04-28 | B180: =IF(dataExtract!B180=0,NA(),IF(A180>=todayDate,NA(),dataExtract!B180)) ->  | P180: =dataExtract!A180 -> 2019-04-28 | Q180: =VLOOKUP(P180,dataExternalFacebook!A:M,13,FALSE) -> 0 | R180: 0 | S180: =VLOOKUP(P180,dataExternalFacebook!A:M,10,FALSE) -> 0
A181: =dataExtract!A181 -> 2019-04-29 | B181: =IF(dataExtract!B181=0,NA(),IF(A181>=todayDate,NA(),dataExtract!B181)) ->  | P181: =dataExtract!A181 -> 2019-04-29 | Q181: =VLOOKUP(P181,dataExternalFacebook!A:M,13,FALSE) -> 0 | R181: 0 | S181: =VLOOKUP(P181,dataExternalFacebook!A:M,10,FALSE) -> 0
A182: =dataExtract!A182 -> 2019-04-30 | B182: =IF(dataExtract!B182=0,NA(),IF(A182>=todayDate,NA(),dataExtract!B182)) ->  | P182: =dataExtract!A182 -> 2019-04-30 | Q182: =VLOOKUP(P182,dataExternalFacebook!A:M,13,FALSE) -> 0 | R182: 0 | S182: =VLOOKUP(P182,dataExternalFacebook!A:M,10,FALSE) -> 0
A183: =dataExtract!A183 -> 2019-05-01 | B183: =IF(dataExtract!B183=0,NA(),IF(A183>=todayDate,NA(),dataExtract!B183)) ->  | P183: =dataExtract!A183 -> 2019-05-01 | Q183: =VLOOKUP(P183,dataExternalFacebook!A:M,13,FALSE) -> 0 | R183: 0 | S183: =VLOOKUP(P183,dataExternalFacebook!A:M,10,FALSE) -> 0
A184: =dataExtract!A184 -> 2019-05-02 | B184: =IF(dataExtract!B184=0,NA(),IF(A184>=todayDate,NA(),dataExtract!B184)) ->  | P184: =dataExtract!A184 -> 2019-05-02 | Q184: =VLOOKUP(P184,dataExternalFacebook!A:M,13,FALSE) -> 0 | R184: 0 | S184: =VLOOKUP(P184,dataExternalFacebook!A:M,10,FALSE) -> 0
A185: =dataExtract!A185 -> 2019-05-03 | B185: =IF(dataExtract!B185=0,NA(),IF(A185>=todayDate,NA(),dataExtract!B185)) ->  | P185: =dataExtract!A185 -> 2019-05-03 | Q185: =VLOOKUP(P185,dataExternalFacebook!A:M,13,FALSE) -> 0 | R185: 0 | S185: =VLOOKUP(P185,dataExternalFacebook!A:M,10,FALSE) -> 0
A186: =dataExtract!A186 -> 2019-05-04 | B186: =IF(dataExtract!B186=0,NA(),IF(A186>=todayDate,NA(),dataExtract!B186)) ->  | P186: =dataExtract!A186 -> 2019-05-04 | Q186: =VLOOKUP(P186,dataExternalFacebook!A:M,13,FALSE) -> 0 | R186: 0 | S186: =VLOOKUP(P186,dataExternalFacebook!A:M,10,FALSE) -> 0
A187: =dataExtract!A187 -> 2019-05-05 | B187: =IF(dataExtract!B187=0,NA(),IF(A187>=todayDate,NA(),dataExtract!B187)) ->  | P187: =dataExtract!A187 -> 2019-05-05 | Q187: =VLOOKUP(P187,dataExternalFacebook!A:M,13,FALSE) -> 0 | R187: 0 | S187: =VLOOKUP(P187,dataExternalFacebook!A:M,10,FALSE) -> 0
A188: =dataExtract!A188 -> 2019-05-06 | B188: =IF(dataExtract!B188=0,NA(),IF(A188>=todayDate,NA(),dataExtract!B188)) ->  | P188: =dataExtract!A188 -> 2019-05-06 | Q188: =VLOOKUP(P188,dataExternalFacebook!A:M,13,FALSE) -> 0 | R188: 0 | S188: =VLOOKUP(P188,dataExternalFacebook!A:M,10,FALSE) -> 0
A189: =dataExtract!A189 -> 2019-05-07 | B189: =IF(dataExtract!B189=0,NA(),IF(A189>=todayDate,NA(),dataExtract!B189)) ->  | P189: =dataExtract!A189 -> 2019-05-07 | Q189: =VLOOKUP(P189,dataExternalFacebook!A:M,13,FALSE) -> 0 | R189: 0 | S189: =VLOOKUP(P189,dataExternalFacebook!A:M,10,FALSE) -> 0
A190: =dataExtract!A190 -> 2019-05-08 | B190: =IF(dataExtract!B190=0,NA(),IF(A190>=todayDate,NA(),dataExtract!B190)) ->  | P190: =dataExtract!A190 -> 2019-05-08 | Q190: =VLOOKUP(P190,dataExternalFacebook!A:M,13,FALSE) -> 0 | R190: 0 | S190: =VLOOKUP(P190,dataExternalFacebook!A:M,10,FALSE) -> 0
A191: =dataExtract!A191 -> 2019-05-09 | B191: =IF(dataExtract!B191=0,NA(),IF(A191>=todayDate,NA(),dataExtract!B191)) ->  | P191: =dataExtract!A191 -> 2019-05-09 | Q191: =VLOOKUP(P191,dataExternalFacebook!A:M,13,FALSE) -> 0 | R191: 0 | S191: =VLOOKUP(P191,dataExternalFacebook!A:M,10,FALSE) -> 0
A192: =dataExtract!A192 -> 2019-05-10 | B192: =IF(dataExtract!B192=0,NA(),IF(A192>=todayDate,NA(),dataExtract!B192)) ->  | P192: =dataExtract!A192 -> 2019-05-10 | Q192: =VLOOKUP(P192,dataExternalFacebook!A:M,13,FALSE) -> 0 | R192: 0 | S192: =VLOOKUP(P192,dataExternalFacebook!A:M,10,FALSE) -> 0
A193: =dataExtract!A193 -> 2019-05-11 | B193: =IF(dataExtract!B193=0,NA(),IF(A193>=todayDate,NA(),dataExtract!B193)) ->  | P193: =dataExtract!A193 -> 2019-05-11 | Q193: =VLOOKUP(P193,dataExternalFacebook!A:M,13,FALSE) -> 0 | R193: 0 | S193: =VLOOKUP(P193,dataExternalFacebook!A:M,10,FALSE) -> 0
A194: =dataExtract!A194 -> 2019-05-12 | B194: =IF(dataExtract!B194=0,NA(),IF(A194>=todayDate,NA(),dataExtract!B194)) ->  | P194: =dataExtract!A194 -> 2019-05-12 | Q194: =VLOOKUP(P194,dataExternalFacebook!A:M,13,FALSE) -> 0 | R194: 0 | S194: =VLOOKUP(P194,dataExternalFacebook!A:M,10,FALSE) -> 0
A195: =dataExtract!A195 -> 2019-05-13 | B195: =IF(dataExtract!B195=0,NA(),IF(A195>=todayDate,NA(),dataExtract!B195)) ->  | P195: =dataExtract!A195 -> 2019-05-13 | Q195: =VLOOKUP(P195,dataExternalFacebook!A:M,13,FALSE) -> 0 | R195: =S195-Q195 -> 0 | S195: =VLOOKUP(P195,dataExternalFacebook!A:M,10,FALSE) -> 0
A196: =dataExtract!A196 -> 2019-05-14 | B196: =IF(dataExtract!B196=0,NA(),IF(A196>=todayDate,NA(),dataExtract!B196)) ->  | P196: =dataExtract!A196 -> 2019-05-14 | Q196: =VLOOKUP(P196,dataExternalFacebook!A:M,13,FALSE) -> 0 | R196: 0 | S196: =VLOOKUP(P196,dataExternalFacebook!A:M,10,FALSE) -> 0
A197: =dataExtract!A197 -> 2019-05-15 | B197: =IF(dataExtract!B197=0,NA(),IF(A197>=todayDate,NA(),dataExtract!B197)) ->  | P197: =dataExtract!A197 -> 2019-05-15 | Q197: =VLOOKUP(P197,dataExternalFacebook!A:M,13,FALSE) -> 0 | R197: 0 | S197: =VLOOKUP(P197,dataExternalFacebook!A:M,10,FALSE) -> 0
A198: =dataExtract!A198 -> 2019-05-16 | B198: =IF(dataExtract!B198=0,NA(),IF(A198>=todayDate,NA(),dataExtract!B198)) ->  | P198: =dataExtract!A198 -> 2019-05-16 | Q198: =VLOOKUP(P198,dataExternalFacebook!A:M,13,FALSE) -> 0 | R198: 0 | S198: =VLOOKUP(P198,dataExternalFacebook!A:M,10,FALSE) -> 0
A199: =dataExtract!A199 -> 2019-05-17 | B199: =IF(dataExtract!B199=0,NA(),IF(A199>=todayDate,NA(),dataExtract!B199)) ->  | P199: =dataExtract!A199 -> 2019-05-17 | Q199: =VLOOKUP(P199,dataExternalFacebook!A:M,13,FALSE) -> 0 | R199: 0 | S199: =VLOOKUP(P199,dataExternalFacebook!A:M,10,FALSE) -> 0
A200: =dataExtract!A200 -> 2019-05-18 | B200: =IF(dataExtract!B200=0,NA(),IF(A200>=todayDate,NA(),dataExtract!B200)) ->  | P200: =dataExtract!A200 -> 2019-05-18 | Q200: =VLOOKUP(P200,dataExternalFacebook!A:M,13,FALSE) -> 0 | R200: 0 | S200: =VLOOKUP(P200,dataExternalFacebook!A:M,10,FALSE) -> 0
... 166 more rows

Sheet dataExternalFacebook (hidden)
A1: Date | B1: Lifetime Total Likes | C1: Daily New Likes | D1: Daily Unlikes | E1: Daily Page Engaged Users | F1: Weekly Page Engaged Users | G1: 28 Days Page Engaged Users | H1: Daily Total Reach | I1: Weekly Total Reach | J1: 28 Days Total Reach | K1: Daily Organic Reach | L1: Weekly Organic Reach | M1: 28 Days Organic Reach
A2: 2018-11-01 | B2: 35535 | E2: 248 | F2: 10664 | G2: 13516 | H2: 1488 | I2: 65224 | J2: 97637.6 | K2: 1488 | L2: 65224 | M2: 76756
A3: 2018-11-02 | B3: 35650 | C3: 1 | E3: 248 | F3: 10664 | G3: 13516 | H3: 1240 | I3: 65720 | J3: 97795.08 | K3: 1240 | L3: 65720 | M3: 76880
A4: 2018-11-03 | B4: 35650 | E4: 124 | F4: 10664 | G4: 13516 | H4: 372 | I4: 65596 | J4: 97795.08 | K4: 372 | L4: 65596 | M4: 76880
A5: 2018-11-04 | B5: 35650 | E5: 56 | F5: 10664 | G5: 13392 | H5: 248 | I5: 65596 | J5: 98110.04 | K5: 248 | L5: 65596 | M5: 76880
A6: 2018-11-05 | B6: 35650 | E6: 56 | F6: 3472 | G6: 13392 | H6: 124 | I6: 34596 | J6: 98110.04 | K6: 124 | L6: 34596 | M6: 76880
A7: 2018-11-06 | B7: 35650 | E7: 56 | F7: 1736 | G7: 13392 | H7: 124 | I7: 11780 | J7: 97795.08 | K7: 124 | L7: 11780 | M7: 76756
A8: 2018-11-07 | B8: 35650 | E8: 56 | F8: 620 | G8: 13268 | H8: 124 | I8: 3720 | J8: 97637.6 | K8: 124 | L8: 3720 | M8: 76756
A9: 2018-11-08 | B9: 35650 | E9: 56 | F9: 372 | G9: 13268 | H9: 124 | I9: 2356 | J9: 97637.6 | K9: 124 | L9: 2356 | M9: 76756
A10: 2018-11-09 | B10: 35765 | C10: 1 | E10: 6572 | F10: 6696 | G10: 16244 | H10: 30380 | I10: 31372 | J10: 103464.36 | K10: 30380 | L10: 31372 | M10: 81344
A11: 2018-11-10 | B11: 35765 | E11: 4092 | F11: 9424 | G11: 18228 | H11: 22692 | I11: 43152 | J11: 107873.8 | K11: 22692 | L11: 43152 | M11: 84692
A12: 2018-11-11 | B12: 35765 | E12: 496 | F12: 9920 | G12: 18476 | H12: 4216 | I12: 44888 | J12: 108661.2 | K12: 4092 | L12: 44888 | M12: 85436
A13: 2018-11-12 | B13: 35765 | E13: 620 | F13: 10416 | G13: 18600 | H13: 2232 | I13: 45632 | J13: 108976.16 | K13: 2232 | L13: 45632 | M13: 85560
A14: 2018-11-13 | B14: 35765 | F14: 10416 | G14: 17980 | H14: 1612 | I14: 46128 | J14: 100787.2 | K14: 1612 | L14: 46128 | M14: 79236
A15: 2018-11-14 | B15: 35765 | F15: 10416 | G15: 17980 | H15: 372 | I15: 46004 | J15: 99842.32 | K15: 248 | L15: 46004 | M15: 78368
A16: 2018-11-15 | B16: 35765 | F16: 10416 | G16: 17236 | H16: 372 | I16: 46004 | J16: 98425 | K16: 372 | L16: 46004 | M16: 77376
A17: 2018-11-16 | B17: 35880 | C17: 1 | E17: 2976 | F17: 7812 | G17: 18476 | H17: 17856 | I17: 34596 | J17: 99369.88 | K17: 17856 | L17: 34596 | M17: 78244
A18: 2018-11-17 | B18: 35995 | C18: 1 | E18: 6324 | F18: 9424 | G18: 21948 | H18: 36208 | I18: 41292 | J18: 104094.28 | K18: 36208 | L18: 41292 | M18: 81964
A19: 2018-11-18 | B19: 35995 | C19: 1 | D19: 1 | E19: 4712 | F19: 11532 | G19: 22816 | H19: 26660 | I19: 49724 | J19: 107401.36 | K19: 26660 | L19: 49724 | M19: 84568
A20: 2018-11-19 | B20: 35995 | E20: 744 | F20: 11656 | G20: 23064 | H20: 4588 | I20: 51460 | J20: 108031.28 | K20: 4588 | L20: 51460 | M20: 85064
A21: 2018-11-20 | B21: 35995 | E21: 620 | F21: 12028 | G21: 23560 | H21: 3720 | I21: 53940 | J21: 111653.32 | K21: 3720 | L21: 53940 | M21: 87916
A22: 2018-11-21 | B22: 35995 | E22: 744 | F22: 12152 | G22: 23684 | H22: 3224 | I22: 54560 | J22: 111653.32 | K22: 3100 | L22: 54560 | M22: 87916
A23: 2018-11-22 | B23: 35995 | F23: 12152 | G23: 23312 | H23: 2356 | I23: 54932 | J23: 111968.28 | K23: 2356 | L23: 54932 | M23: 88164
A24: 2018-11-23 | B24: 35995 | E24: 124 | F24: 10664 | G24: 23188 | H24: 124 | I24: 53940 | J24: 111968.28 | K24: 124 | L24: 53940 | M24: 88164
A25: 2018-11-24 | B25: 35995 | F25: 6448 | G25: 23188 | H25: 992 | I25: 35216 | J25: 111968.28 | K25: 992 | L25: 35216 | M25: 88164
A26: 2018-11-25 | B26: 35995 | E26: 3720 | F26: 5704 | G26: 24428 | H26: 28148 | I26: 36952 | J26: 114960.4 | K26: 28148 | L26: 36952 | M26: 90520
A27: 2018-11-26 | B27: 35995 | E27: 3596 | F27: 7564 | G27: 22568 | H27: 25792 | I27: 47864 | J27: 110708.44 | K27: 25792 | L27: 47864 | M27: 87172
A28: 2018-11-27 | B28: 35995 | E28: 1116 | F28: 7936 | G28: 22320 | H28: 12028 | I28: 49104 | J28: 100472.24 | K28: 12028 | L28: 49104 | M28: 79112
A29: 2018-11-28 | B29: 35995 | E29: 620 | F29: 7936 | G29: 22320 | H29: 4960 | I29: 51212 | J29: 96377.76 | K29: 4960 | L29: 51212 | M29: 75888
A30: 2018-11-29 | B30: 35995 | E30: 2232 | F30: 8928 | G30: 22444 | H30: 21824 | I30: 54436 | J30: 98425 | K30: 21824 | L30: 54436 | M30: 77500
A31: 2018-11-30 | B31: 35995 | E31: 744 | F31: 9176 | G31: 22568 | H31: 12896 | I31: 57040 | J31: 98739.96 | K31: 12896 | L31: 57040 | M31: 77748
A32: 2018-12-01 | B32: 35995 | E32: 248 | F32: 9424 | G32: 22568 | H32: 2604 | I32: 57164 | J32: 98739.96 | K32: 2604 | L32: 57164 | M32: 77748
A33: 2018-12-02 | B33: 35995 | E33: 124 | F33: 7068 | G33: 22568 | H33: 2976 | I33: 48484 | J33: 98425 | K33: 2976 | L33: 48484 | M33: 77500
A34: 2018-12-03 | B34: 35995 | F34: 4464 | G34: 22568 | H34: 1612 | I34: 39060 | J34: 98267.52 | K34: 1488 | L34: 39060 | M34: 77376
A35: 2018-12-04 | B35: 35995 | F35: 3596 | G35: 22568 | H35: 496 | I35: 35092 | J35: 98267.52 | K35: 496 | L35: 35092 | M35: 77376
A36: 2018-12-05 | B36: 35995 | E36: 124 | F36: 3224 | G36: 22568 | H36: 2356 | I36: 33232 | J36: 98267.52 | K36: 2356 | L36: 33232 | M36: 77376
A37: 2018-12-06 | B37: 35995 | E37: 1240 | F37: 2480 | G37: 23064 | H37: 18972 | I37: 32736 | J37: 105669.08 | K37: 18972 | L37: 32736 | M37: 83204
A38: 2018-12-07 | B38: 35995 | E38: 5456 | F38: 7068 | G38: 22196 | H38: 38688 | I38: 53196 | J38: 115432.84 | K38: 38688 | L38: 53196 | M38: 90892
A39: 2018-12-08 | B39: 36110 | C39: 1 | E39: 2232 | F39: 8556 | G39: 21328 | H39: 18972 | I39: 59024 | J39: 114960.4 | K39: 18972 | L39: 59024 | M39: 90520
A40: 2018-12-09 | B40: 36110 | E40: 496 | F40: 8680 | G40: 21204 | H40: 4836 | I40: 60760 | J40: 115905.28 | K40: 4836 | L40: 60760 | M40: 91264
A41: 2018-12-10 | B41: 36110 | E41: 124 | F41: 8804 | G41: 21204 | H41: 3472 | I41: 61380 | J41: 115905.28 | K41: 3472 | L41: 61380 | M41: 91264
A42: 2018-12-11 | B42: 36110 | E42: 248 | F42: 8928 | G42: 21204 | H42: 868 | I42: 61752 | J42: 115905.28 | K42: 868 | L42: 61752 | M42: 91264
A43: 2018-12-12 | B43: 36110 | F43: 8928 | G43: 21204 | H43: 248 | I43: 61380 | J43: 115905.28 | K43: 124 | L43: 61256 | M43: 91264
A44: 2018-12-13 | B44: 36110 | E44: 248 | F44: 8060 | G44: 21328 | H44: 1116 | I44: 50468 | J44: 115905.28 | K44: 1116 | L44: 50344 | M44: 91264
A45: 2018-12-14 | B45: 36110 | E45: 496 | F45: 3596 | G45: 20832 | H45: 16492 | I45: 33108 | J45: 116220.24 | K45: 16492 | L45: 33108 | M45: 91512
A46: 2018-12-15 | B46: 36110 | E46: 1736 | F46: 3100 | G46: 18352 | H46: 13640 | I46: 28520 | J46: 113543.08 | K46: 13640 | L46: 28520 | M46: 89404
A47: 2018-12-16 | B47: 36110 | E47: 1860 | F47: 4340 | G47: 17732 | H47: 12028 | I47: 29884 | J47: 111338.36 | K47: 12028 | L47: 29884 | M47: 87668
A48: 2018-12-17 | B48: 36110 | E48: 248 | F48: 4340 | G48: 17484 | H48: 2604 | I48: 29388 | J48: 110865.92 | K48: 2604 | L48: 29388 | M48: 87296
A49: 2018-12-18 | B49: 36110 | E49: 1364 | F49: 4836 | G49: 17112 | H49: 16864 | I49: 38440 | J49: 108661.2 | K49: 16864 | L49: 38440 | M49: 85560
A50: 2018-12-19 | B50: 36110 | E50: 620 | F50: 5332 | G50: 17236 | H50: 8556 | I50: 42408 | J50: 110078.52 | K50: 8556 | L50: 42408 | M50: 86676
A51: 2018-12-20 | B51: 36110 | E51: 124 | F51: 5332 | G51: 17236 | H51: 1736 | I51: 42408 | J51: 109448.6 | K51: 1736 | L51: 42408 | M51: 86180
A52: 2018-12-21 | B52: 36110 | E52: 868 | F52: 5332 | G52: 17360 | H52: 15872 | I52: 40176 | J52: 109448.6 | K52: 15872 | L52: 40176 | M52: 86180
A53: 2018-12-22 | B53: 36110 | F53: 4092 | G53: 17360 | H53: 2604 | I53: 34472 | J53: 109448.6 | K53: 2604 | L53: 34472 | M53: 86180
A54: 2018-12-23 | B54: 36110 | F54: 2604 | G54: 15996 | H54: 620 | I54: 26908 | J54: 107243.88 | K54: 620 | L54: 26908 | M54: 84444
A55: 2018-12-24 | B55: 36110 | F55: 2356 | G55: 14508 | H55: 248 | I55: 25916 | J55: 102362 | K55: 248 | L55: 25916 | M55: 80600
A56: 2018-12-25 | B56: 36110 | F56: 1612 | G56: 14012 | H56: 496 | I56: 22444 | J56: 100472.24 | K56: 496 | L56: 22444 | M56: 79112
A57: 2018-12-26 | B57: 36225 | C57: 1 | E57: 3968 | F57: 4712 | G57: 15872 | H57: 16864 | I57: 25048 | J57: 99842.32 | K57: 16864 | L57: 25048 | M57: 78616
A58: 2018-12-27 | B58: 36340 | C58: 1 | E58: 2852 | F58: 7316 | G58: 17360 | H58: 8804 | I58: 29264 | J58: 98110.04 | K58: 8804 | L58: 29264 | M58: 77252
A59: 2018-12-28 | B59: 36340 | E59: 1612 | F59: 7688 | G59: 17360 | H59: 14260 | I59: 28892 | J59: 97007.68 | K59: 14260 | L59: 28892 | M59: 76384
A60: 2018-12-29 | B60: 36340 | E60: 744 | F60: 8308 | G60: 17484 | H60: 7068 | I60: 30132 | J60: 97165.16 | K60: 7068 | L60: 30132 | M60: 76508
A61: 2018-12-30 | B61: 36455 | C61: 1 | E61: 248 | F61: 8432 | G61: 17608 | H61: 3224 | I61: 31000 | J61: 97795.08 | K61: 3224 | L61: 31000 | M61: 77004
A62: 2018-12-31 | B62: 36455 | E62: 124 | F62: 8432 | G62: 17608 | H62: 744 | I62: 31124 | J62: 97795.08 | K62: 744 | L62: 31124 | M62: 77004
A63: 2019-01-01 | B63: 36455 | F63: 8432 | G63: 17608 | H63: 1736 | I63: 31248 | J63: 98267.52 | K63: 1736 | L63: 31248 | M63: 77376
A64: 2019-01-02 | B64: 36455 | E64: 496 | F64: 5332 | G64: 17856 | H64: 4712 | I64: 27280 | J64: 98110.04 | K64: 4588 | L64: 27156 | M64: 77004
A65: 2019-01-03 | B65: 36455 | E65: 744 | F65: 3348 | G65: 17112 | H65: 12028 | I65: 25172 | J65: 90551 | K65: 12028 | L65: 25048 | M65: 71052
A66: 2019-01-04 | B66: 36455 | E66: 1364 | F66: 3100 | G66: 14136 | H66: 10292 | I66: 26784 | J66: 81417.16 | K66: 10292 | L66: 26660 | M66: 63984
A67: 2019-01-05 | B67: 36455 | E67: 620 | F67: 2728 | G67: 13144 | H67: 21824 | I67: 34720 | J67: 86299.04 | K67: 21824 | L67: 34596 | M67: 67828
A68: 2019-01-06 | B68: 36455 | E68: 248 | F68: 2728 | G68: 13020 | H68: 5332 | I68: 35712 | J68: 86141.56 | K68: 5332 | L68: 35588 | M68: 67704
A69: 2019-01-07 | B69: 36455 | E69: 124 | F69: 2604 | G69: 12896 | H69: 3100 | I69: 36456 | J69: 85984.08 | K69: 3100 | L69: 36332 | M69: 67456
A70: 2019-01-08 | B70: 36455 | E70: 1116 | F70: 3348 | G70: 13516 | H70: 3596 | I70: 37448 | J70: 87558.88 | K70: 3596 | L70: 37324 | M70: 68820
A71: 2019-01-09 | B71: 36570 | C71: 1 | E71: 1488 | F71: 4216 | G71: 14384 | H71: 1116 | I71: 37324 | J71: 87716.36 | K71: 1116 | L71: 37324 | M71: 68944
A72: 2019-01-10 | B72: 36570 | E72: 372 | F72: 4216 | G72: 14260 | H72: 2976 | I72: 35960 | J72: 88188.8 | K72: 2976 | L72: 35960 | M72: 69316
A73: 2019-01-11 | B73: 36570 | E73: 2604 | F73: 5456 | G73: 15252 | H73: 17608 | I73: 37324 | J73: 84724.24 | K73: 17608 | L73: 37324 | M73: 66588
A74: 2019-01-12 | B74: 36570 | E74: 3596 | F74: 7564 | G74: 15996 | H74: 14260 | I74: 35712 | J74: 83936.84 | K74: 14260 | L74: 35712 | M74: 65844
A75: 2019-01-13 | B75: 36570 | E75: 3968 | F75: 10168 | G75: 16492 | H75: 20212 | I75: 40052 | J75: 84094.32 | K75: 20212 | L75: 40052 | M75: 66092
A76: 2019-01-14 | B76: 36570 | E76: 992 | F76: 11036 | G76: 16864 | H76: 4092 | I76: 40424 | J76: 84251.8 | K76: 4092 | L76: 40424 | M76: 66216
A77: 2019-01-15 | B77: 36570 | E77: 2852 | F77: 11408 | G77: 17484 | H77: 13144 | I77: 39680 | J77: 83936.84 | K77: 13144 | L77: 39680 | M77: 65844
A78: 2019-01-16 | B78: 36570 | E78: 744 | F78: 10912 | G78: 17360 | H78: 4960 | I78: 40176 | J78: 82519.52 | K78: 4960 | L78: 40176 | M78: 64728
A79: 2019-01-17 | B79: 36570 | E79: 3720 | F79: 11780 | G79: 18104 | H79: 19468 | I79: 43028 | J79: 86614 | K79: 19468 | L79: 43028 | M79: 67952
A80: 2019-01-18 | B80: 36570 | E80: 868 | F80: 10912 | G80: 18600 | H80: 10292 | I80: 43772 | J80: 88976.2 | K80: 10292 | L80: 43772 | M80: 69936
A81: 2019-01-19 | B81: 36570 | E81: 496 | F81: 9672 | G81: 18600 | H81: 3348 | I81: 42904 | J81: 88976.2 | K81: 3348 | L81: 42904 | M81: 69936
A82: 2019-01-20 | B82: 36570 | E82: 124 | F82: 7688 | G82: 18724 | H82: 1488 | I82: 37820 | J82: 88818.72 | K82: 1488 | L82: 37820 | M82: 69812
A83: 2019-01-21 | B83: 36570 | E83: 2232 | F83: 8432 | G83: 19344 | H83: 22940 | I83: 46004 | J83: 92440.76 | K83: 22940 | L83: 46004 | M83: 72540
A84: 2019-01-22 | B84: 36570 | E84: 1612 | F84: 8804 | G84: 20956 | H84: 8184 | I84: 50592 | J84: 96220.28 | K84: 8184 | L84: 50592 | M84: 75764
A85: 2019-01-23 | B85: 36570 | E85: 124 | F85: 8308 | G85: 19220 | H85: 1488 | I85: 51212 | J85: 95905.32 | K85: 1364 | L85: 51212 | M85: 75516
A86: 2019-01-24 | B86: 36570 | E86: 1860 | F86: 6944 | G86: 17980 | H86: 16740 | I86: 41292 | J86: 95117.92 | K86: 16740 | L86: 41044 | M86: 74896
A87: 2019-01-25 | B87: 36570 | E87: 248 | F87: 6448 | G87: 17856 | H87: 3348 | I87: 35588 | J87: 94960.44 | K87: 3348 | L87: 35464 | M87: 74772
A88: 2019-01-26 | B88: 36570 | E88: 248 | F88: 6200 | G88: 17980 | H88: 744 | I88: 34720 | J88: 94015.56 | K88: 744 | L88: 34596 | M88: 74028
A89: 2019-01-27 | B89: 36570 | F89: 6076 | G89: 17980 | H89: 248 | I89: 34348 | J89: 93700.6 | K89: 248 | L89: 34224 | M89: 73780
A90: 2019-01-28 | B90: 36570 | E90: 124 | F90: 4092 | G90: 18104 | H90: 248 | I90: 26040 | J90: 94015.56 | K90: 248 | L90: 25916 | M90: 74028
A91: 2019-01-29 | B91: 36570 | F91: 2604 | G91: 18104 | I91: 21328 | J91: 93700.6 | L91: 21204 | M91: 73780
A92: 2019-01-30 | B92: 36570 | F92: 2480 | G92: 17980 | H92: 372 | I92: 20584 | J92: 93700.6 | K92: 372 | L92: 20584 | M92: 73780
A93: 2019-01-31 | B93: 36685 | C93: 1 | E93: 124 | F93: 744 | G93: 17980 | H93: 744 | I93: 5208 | J93: 93700.6 | K93: 744 | L93: 5208 | M93: 73780
A94: 2019-02-01 | B94: 36800 | C94: 1 | E94: 124 | F94: 620 | G94: 17856 | H94: 248 | I94: 2480 | J94: 90236.04 | K94: 124 | L94: 2356 | M94: 71052
A95: 2019-02-02 | B95: 36800 | F95: 372 | G95: 17608 | H95: 248 | I95: 2108 | J95: 80472.28 | K95: 248 | L95: 1984 | M95: 63364
A96: 2019-02-03 | B96: 36800 | F96: 372 | G96: 17608 | H96: 124 | I96: 1860 | J96: 77480.16 | K96: 57000 | L96: 1736 | M96: 61008
A97: 2019-02-04 | B97: 36800 | F97: 248 | G97: 17608 | H97: 248 | I97: 1736 | J97: 76377.8 | K97: 124 | L97: 1612 | M97: 60140
A98: 2019-02-05 | B98: 36915 | C98: 1 | E98: 7688 | F98: 7936 | G98: 21948 | H98: 90024 | I98: 90272 | J98: 165511.48 | K98: 89404 | L98: 89776 | M98: 129704
A99: 2019-02-06 | B99: 36915 | E99: 2852 | F99: 10416 | G99: 23560 | H99: 55304 | I99: 139996 | J99: 221101.92 | K99: 50592 | L99: 135780 | M99: 170128
A100: 2019-02-07 | B100: 36800 | E100: 868 | F100: 11160 | G100: 24180 | H100: 17360 | I100: 153760 | J100: 235117.64 | K100: 11408 | L100: 144584 | M100: 177072
A101: 2019-02-08 | B101: 36800 | E101: 620 | F101: 11532 | G101: 23560 | H101: 11160 | I101: 162564 | J101: 243621.56 | K101: 5704 | L101: 149668 | M101: 180792
A102: 2019-02-09 | B102: 36800 | E102: 744 | F102: 12152 | G102: 22816 | H102: 11532 | I102: 168392 | J102: 247716.04 | K102: 5456 | L102: 152644 | M102: 181040
A103: 2019-02-10 | B103: 36800 | E103: 744 | F103: 12772 | G103: 21452 | H103: 8060 | I103: 172608 | J103: 251495.56 | K103: 2480 | L103: 153760 | M103: 181288
A104: 2019-02-11 | B104: 36800 | E104: 5456 | F104: 16120 | G104: 23932 | H104: 28768 | I104: 182528 | J104: 260156.96 | K104: 22816 | L104: 158968 | M104: 182776
A105: 2019-02-12 | B105: 36915 | C105: 1 | E105: 1116 | F105: 11284 | G105: 23808 | H105: 17360 | I105: 126356 | J105: 268818.36 | K105: 8184 | L105: 94488 | M105: 183272
A106: 2019-02-13 | B106: 37030 | C106: 1 | E106: 1116 | F106: 9672 | G106: 23932 | H106: 11904 | I106: 84568 | J106: 275432.52 | K106: 3720 | L106: 50964 | M106: 184140
A107: 2019-02-14 | B107: 37145 | C107: 1 | E107: 496 | F107: 9424 | G107: 22816 | H107: 7440 | I107: 74772 | J107: 271338.04 | K107: 2108 | L107: 42284 | M107: 177568
A108: 2019-02-15 | B108: 37260 | C108: 1 | E108: 496 | F108: 9300 | G108: 22444 | H108: 9672 | I108: 73780 | J108: 274645.12 | K108: 620 | L108: 37324 | M108: 172856
A109: 2019-02-16 | B109: 37260 | E109: 124 | F109: 9052 | G109: 22196 | H109: 248 | I109: 66216 | J109: 273857.72 | K109: 248 | L109: 33604 | M109: 171864
A110: 2019-02-17 | B110: 37375 | C110: 1 | E110: 124 | F110: 8804 | G110: 22196 | H110: 1240 | I110: 62248 | J110: 275747.48 | K110: 1240 | L110: 32612 | M110: 173104
A111: 2019-02-18 | B111: 37375 | E111: 124 | F111: 3472 | G111: 20832 | H111: 744 | I111: 43772 | J111: 272440.4 | K111: 620 | L111: 15252 | M111: 170376
A112: 2019-02-19 | B112: 37375 | F112: 2356 | G112: 19592 | H112: 248 | I112: 30132 | J112: 268818.36 | K112: 248 | L112: 8308 | M112: 167524
A113: 2019-02-20 | B113: =B112*1.03 -> 38496.25 | E113: 496 | F113: 9300 | G113: 22444 | H113: 9672 | I113: 73780 | J113: 274645.12 | K113: 620 | L113: 37324 | M113: 172856
A114: 2019-02-21 | B114: =B113*1.03 -> 39651.1375 | E114: 124 | F114: 9052 | G114: 22196 | H114: 248 | I114: 66216 | J114: 273857.72 | K114: 248 | L114: 33604 | M114: 171864
A115: 2019-02-22 | B115: 40840.67163 | E115: 124 | F115: 8804 | G115: 22196 | H115: 1240 | I115: 62248 | J115: 275747.48 | K115: 1240 | L115: 32612 | M115: 173104
A116: 2019-02-23 | B116: 42065.89177 | E116: 124 | F116: 3472 | G116: 20832 | H116: 744 | I116: 43772 | J116: 272440.4 | K116: 620 | L116: 15252 | M116: 170376
A117: 2019-02-24 | B117: 43327.86853 | F117: 2356 | G117: 19592 | H117: 248 | I117: 30132 | J117: 268818.36 | K117: 248 | L117: 8308 | M117: 167524
A118: 2019-02-25 | B118: 44627.70458 | E118: 496 | F118: 9300 | G118: 22444 | H118: 9672 | I118: 73780 | J118: 274645.12 | K118: 620 | L118: 37324 | M118: 172856
A119: 2019-02-26 | B119: 45966.53572 | E119: 124 | F119: 9052 | G119: 22196 | H119: 248 | I119: 66216 | J119: 273857.72 | K119: 248 | L119: 33604 | M119: 171864
A120: 2019-02-27 | B120: 47345.53179 | E120: 124 | F120: 8804 | G120: 22196 | H120: 1240 | I120: 62248 | J120: 275747.48 | K120: 1240 | L120: 32612 | M120: 173104
A121: 2019-02-28 | B121: 48765.89775 | E121: 124 | F121: 3472 | G121: 20832 | H121: 744 | I121: 43772 | J121: 272440.4 | K121: 620 | L121: 15252 | M121: 170376
A122: 2019-03-01 | B122: 50228.87468 | F122: 2356 | G122: 19592 | H122: 248 | I122: 30132 | J122: 268818.36 | K122: 248 | L122: 8308 | M122: 167524
A123: 2019-03-02 | B123: 51735.74092 | E123: 7688 | F123: 7936 | G123: 21948 | H123: 90024 | I123: 90272 | J123: 165511.48 | K123: 89404 | L123: 89776 | M123: 129704
A124: 2019-03-03 | B124: 53287.81315 | E124: 2852 | F124: 10416 | G124: 23560 | H124: 55304 | I124: 139996 | J124: 221101.92 | K124: 50592 | L124: 135780 | M124: 170128
A125: 2019-03-04 | B125: 54886.44754 | E125: 868 | F125: 11160 | G125: 24180 | H125: 17360 | I125: 153760 | J125: 235117.64 | K125: 11408 | L125: 144584 | M125: 177072
A126: 2019-03-05 | B126: 56533.04097 | E126: 620 | F126: 11532 | G126: 23560 | H126: 11160 | I126: 162564 | J126: 243621.56 | K126: 5704 | L126: 149668 | M126: 180792
A127: 2019-03-06 | B127: 58229.0322 | E127: 744 | F127: 12152 | G127: 22816 | H127: 11532 | I127: 168392 | J127: 247716.04 | K127: 5456 | L127: 152644 | M127: 181040
A128: 2019-03-07 | B128: 59975.90316 | E128: 744 | F128: 12772 | G128: 21452 | H128: 8060 | I128: 172608 | J128: 251495.56 | K128: 2480 | L128: 153760 | M128: 181288
A129: 2019-03-08 | B129: 61775.18026 | E129: 496 | F129: 9300 | G129: 22444 | H129: 9672 | I129: 73780 | J129: 274645.12 | K129: 620 | L129: 37324 | M129: 172856
A130: 2019-03-09 | B130: 63628.43566 | E130: 124 | F130: 9052 | G130: 22196 | H130: 248 | I130: 66216 | J130: 273857.72 | K130: 248 | L130: 33604 | M130: 171864
A131: 2019-03-10 | B131: 65537.28873 | E131: 124 | F131: 8804 | G131: 22196 | H131: 1240 | I131: 62248 | J131: 275747.48 | K131: 1240 | L131: 32612 | M131: 173104
A132: 2019-03-11 | B132: 67503.4074 | E132: 124 | F132: 3472 | G132: 20832 | H132: 744 | I132: 43772 | J132: 272440.4 | K132: 620 | L132: 15252 | M132: 170376
A133: 2019-03-12 | B133: 69528.50962 | E133: 496 | F133: 9300 | G133: 22444 | H133: 9672 | I133: 73780 | J133: 274645.12 | K133: 620 | L133: 37324 | M133: 172856
A134: 2019-03-13 | B134: 71614.36491 | E134: 124 | F134: 9052 | G134: 22196 | H134: 248 | I134: 66216 | J134: 273857.72 | K134: 248 | L134: 33604 | M134: 171864
A135: 2019-03-14 | B135: 73762.79585 | E135: 124 | F135: 8804 | G135: 22196 | H135: 1240 | I135: 62248 | J135: 275747.48 | K135: 1240 | L135: 32612 | M135: 173104
A136: 2019-03-15 | B136: 75975.67973 | E136: 124 | F136: 3472 | G136: 20832 | H136: 744 | I136: 43772 | J136: 272440.4 | K136: 620 | L136: 15252 | M136: 170376
A137: 2019-03-16 | B137: 78254.95012 | E137: 496 | F137: 5332 | G137: 17856 | H137: 4712 | I137: 27280 | J137: 98110.04 | K137: 4588 | L137: 27156 | M137: 77004
A138: 2019-03-17 | B138: 80602.59862 | E138: 744 | F138: 3348 | G138: 17112 | H138: 12028 | I138: 25172 | J138: 90551 | K138: 12028 | L138: 25048 | M138: 71052
A139: 2019-03-18 | B139: 83020.67658 | E139: 1364 | F139: 3100 | G139: 14136 | H139: 10292 | I139: 26784 | J139: 81417.16 | K139: 10292 | L139: 26660 | M139: 63984
A140: 2019-03-19 | B140: 85511.29688 | E140: 620 | F140: 2728 | G140: 13144 | H140: 21824 | I140: 34720 | J140: 86299.04 | K140: 21824 | L140: 34596 | M140: 67828
A141: 2019-03-20 | B141: 88076.63579 | E141: 248 | F141: 2728 | G141: 13020 | H141: 5332 | I141: 35712 | J141: 86141.56 | K141: 5332 | L141: 35588 | M141: 67704
A142: 2019-03-21 | B142: 90718.93486 | E142: 7688 | F142: 7936 | G142: 21948 | H142: 90024 | I142: 90272 | J142: 165511.48 | K142: 89404 | L142: 89776 | M142: 129704
A143: 2019-03-22 | B143: 93440.50291 | E143: 2852 | F143: 10416 | G143: 23560 | H143: 55304 | I143: 139996 | J143: 221101.92 | K143: 50592 | L143: 135780 | M143: 170128
A144: 2019-03-23 | B144: 96243.71799 | E144: 868 | F144: 11160 | G144: 24180 | H144: 17360 | I144: 153760 | J144: 235117.64 | K144: 11408 | L144: 144584 | M144: 177072
A145: 2019-03-24 | B145: 99131.02953 | E145: 620 | F145: 11532 | G145: 23560 | H145: 11160 | I145: 162564 | J145: 243621.56 | K145: 5704 | L145: 149668 | M145: 180792
A146: 2019-03-25 | B146: 102104.9604 | E146: 744 | F146: 12152 | G146: 22816 | H146: 11532 | I146: 168392 | J146: 247716.04 | K146: 5456 | L146: 152644 | M146: 181040
A147: 2019-03-26 | B147: 105168.1092 | E147: 744 | F147: 12772 | G147: 21452 | H147: 8060 | I147: 172608 | J147: 251495.56 | K147: 2480 | L147: 153760 | M147: 181288
A148: 2019-03-27 | B148: 108323.1525 | E148: 5456 | F148: 16120 | G148: 23932 | H148: 28768 | I148: 182528 | J148: 260156.96 | K148: 22816 | L148: 158968 | M148: 182776
A149: 2019-03-28 | B149: 111572.8471 | E149: 1116 | F149: 11284 | G149: 23808 | H149: 17360 | I149: 126356 | J149: 268818.36 | K149: 8184 | L149: 94488 | M149: 183272
A150: 2019-03-29 | B150: 114920.0325 | E150: 1116 | F150: 9672 | G150: 23932 | H150: 11904 | I150: 84568 | J150: 275432.52 | K150: 3720 | L150: 50964 | M150: 184140
A151: 2019-03-30 | B151: 118367.6335 | E151: 1116 | F151: 9672 | G151: 23932 | H151: 11904 | I151: 84568 | J151: 275432.52 | K151: 3720 | L151: 50964 | M151: 184140
A152: 2019-03-31 | B152: 121918.6625
A153: 2019-04-01
A154: 2019-04-02
A155: 2019-04-03
A156: 2019-04-04
A157: 2019-04-05
A158: 2019-04-06
A159: 2019-04-07
A160: 2019-04-08
A161: 2019-04-09
A162: 2019-04-10
A163: 2019-04-11
A164: 2019-04-12
A165: 2019-04-13
A166: 2019-04-14
A167: 2019-04-15
A168: 2019-04-16
A169: 2019-04-17
A170: 2019-04-18
A171: 2019-04-19
A172: 2019-04-20
A173: 2019-04-21
A174: 2019-04-22
A175: 2019-04-23
A176: 2019-04-24
A177: 2019-04-25
A178: 2019-04-26
A179: 2019-04-27
A180: 2019-04-28
A181: 2019-04-29
A182: 2019-04-30
A183: 2019-05-01
A184: 2019-05-02
A185: 2019-05-03
A186: 2019-05-04
A187: 2019-05-05
A188: 2019-05-06
A189: 2019-05-07
A190: 2019-05-08
A191: 2019-05-09
A192: 2019-05-10
A193: 2019-05-11
A194: 2019-05-12
A195: 2019-05-13
A196: 2019-05-14
A197: 2019-05-15
A198: 2019-05-16
A199: 2019-05-17
A200: 2019-05-18
... 166 more rows

Sheet information (hidden)
A1: Adobe Lab Exercise
A3: Author | B3: Kristi Barrow
A5: Date | B5: =TODAY() -> 2019-03-27
A7: Report Date | B7: =TODAY() -> 2019-03-27
A9: Report Week Start Date | B9: =+reportWeekEnd-6 -> 2019-03-17
A11: Report Week End Date | B11: =INT((B7-1)/7)*7+0 -> 2019-03-23
A13: Product | B13: =VLOOKUP(B24,B17:C20,2,FALSE) -> Basic High Waist Jean
A15: Chart Title | B15: =B13&" - Orders for last 8 weeks" -> Basic High Waist Jean - Orders for last 8 weeks
A17: Products | B17: 1 | C17: Basic High Waist Jean
B18: 2 | C18: Bling Belt High Waist Jean
B19: 3 | C19: Dark Slimmer Jean
B20: 4 | C20: Baby Blue Low Waist Jean
A24: Product Selection | B24: 1
